Cogmind - Beta 11.1 @@@ ROGUE MODE // 2022.07.07 @ 04:32:21 Player: ktur Result: Heading to fleet! Performance ------------- Evolutions (9) 4500 Regions Visited (31) 6200 Robots Destroyed (626) 3130 Value Destroyed (34431) 34431 Prototype IDs (113) 2260 Alien Tech Used (11) 2200 Bonus (32860) 32860 TOTAL SCORE: 85581 Bonus ------- Triggered High Security 500 High Alert Combat Kills 10584 Follower Combat Kills 2672 Network Hubs Disabled 400 Met Imprinter 300 Destroyed Z-Imprinter 1000 Triggered Deep Caves Wall 500 Exposed GOLEM Chamber 500 Met Zhirov 300 Met Warlord at Base 500 MAIN.C Attacked Warlord 500 Warlord Defense Kills 3500 Built Enhanced Grunts 300 A7 Reached Mainframe 300 Met R17 at Cetus 500 Used Core Reset Matrix 3000 Met R17 at Research 2000 Met Warlord at Research 2000 Scanned by Researcher 500 Pursued by Intercept 1500 Win 3000 Friendly Fire -1496 Cogmind --------- Core Integrity 111/1600 Matter 199/425 Energy 99/100 System Corruption 24% Temperature Cool (0) Movement Core (250) Ox4 Location To Fleet Rendezvous Parts ------- > --- POWER (3) -------- (None) > --- PROPULSION (6) --- Armored Heavy Treads > --- UTILITY (12) ----- (None) > --- WEAPON (4) ------- Cooled Nova Cannon > --- INVENTORY (7) ---- Vortex Chain Reactor Experimental Power Amplifier Core Stripper Peak State ------------ > --- POWER ------------ Light Particle Reactor Assembled Flux Generator > --- PROPULSION ------- Myomer Leg Biometal Leg Biometal Leg Biometal Leg Assembled Alloy Leg Assembled Alloy Leg > --- UTILITY ---------- Assembled Nanovents Assembled Nanovents Assembled Nanovents Huge Storage Unit Assembled Biocell Array Assembled Suspension Frame Spectral Analyzer 0b10 Alert Chip Experimental Core Analyzer Assembled Alloy Armor GOLEM Unit > --- WEAPON ----------- Sigix Shearcannon Sigix Shearcannon > --- INVENTORY -------- Vortex Chain Reactor Vortex Chain Reactor Vortex Chain Reactor Biometal Leg Experimental Power Amplifier Advanced Energy Well Zionite Biocell Zionite Biocell Zionite Biocell Improved Armor Integrity Analyzer Transdimensional Reconstructor Transdimensional Reconstructor Vortex Cannon Cooled Nova Cannon Null Cannon Linked Autogun Linked Autogun Precision Rocket Launcher Sigix Terminator Core Stripper [Rating: 252] Favorites ----------- Power Assembled Flux Generator Engine Reinforced Deuterium Engine Power Core Improved Fusion Compressor Reactor Assembled Flux Generator Propulsion Centrium Heavy Treads Treads Centrium Heavy Treads Leg Assembled Alloy Leg Hover Unit Zionite Glidesys I Flight Unit Cooled Q-thruster Utility Huge Storage Unit Device GOLEM Unit Storage Huge Storage Unit Processor 0b10 Alert Chip Hackware Hacking Suite Protection Assembled Alloy Armor Weapon Assembled Focal Cannon Energy Gun Heavy EM Shotgun Energy Cannon Assembled Focal Cannon Ballistic Gun Improved Assault Rifle Ballistic Cannon Heavy Assault Cannon Launcher Precision Rocket Launcher Special Weapon Plasma Cutter Impact Weapon Maul Special Melee Weapon Improved Datajack Build | -11 -10 -10 -10 -9 -8 -7 -7 -7 -7 -7 -6 -6 -6 -6 -6 -6 -5 -5 -5 -5 -4 -4 -4 -4 -3 -3 -3 -3 -2 -2 -1 ------- Run | Scr Mat Min Exi Min Mat Fac Low Low Zio Dee Pro Fac Ext Cet Arc Hub Fac Upp Upp Zhi Pro Fac Upp War Pro Res Qua Sec Res Tes Acc Slots Evolved 18 | . . . . . 4 2 . . . . . 2 . . . . 2 . . . . 2 . . . 2 . . 2 . 2 Power 2 | . . . . . . . . . . . . 1 . . . . . . . . . . . . . . . . 1 . . Propulsion 4 | . . . . . 1 . . . . . . . . . . . 1 . . . . . . . . 2 . . . . . Utility 10 | . . . . . 3 2 . . . . . 1 . . . . 1 . . . . 2 . . . . . . 1 . . Weapon 2 | . . . . . . . . . . . . . . . . . . . . . . . . . . . . . . . 2 Parts Attached 530 | 6 13 7 . 3 53 33 9 1 6 57 3 1 3 4 15 2 29 4 3 6 1 18 2 13 14 10 68 37 6 28 75 Power 29 | 1 2 1 . . 5 . . . . 4 . . . . . . . . . . . . . 1 . . 1 . 1 6 7 Engine 11 | 1 2 1 . . 5 . . . . 2 . . . . . . . . . . . . . . . . . . . . . Core 1 | . . . . . . . . . . . . . . . . . . . . . . . . . . . . . 1 . . Reactor 17 | . . . . . . . . . . 2 . . . . . . . . . . . . . 1 . . 1 . . 6 7 Propulsion 103 | 2 . . . 1 17 7 1 1 3 9 . . . 1 4 . 8 . 1 . . 1 . . . 1 6 2 1 2 35 Treads 65 | 2 . . . 1 17 5 1 1 3 . . . . 1 4 . 6 . 1 . . 1 . . . 1 6 2 1 2 10 Leg 29 | . . . . . . . . . . 4 . . . . . . . . . . . . . . . . . . . . 25 Wheel . | . . . . . . . . . . . . . . . . . . . . . . . . . . . . . . . . Hover 8 | . . . . . . 2 . . . 5 . . . . . . 1 . . . . . . . . . . . . . . Flight 1 | . . . . . . . . . . . . . . . . . 1 . . . . . . . . . . . . . . Utility 303 | 1 3 . . . 17 21 8 . 1 28 3 1 3 2 10 2 17 2 1 6 1 17 2 11 13 9 56 32 4 13 19 Device 170 | . . . . . 4 14 5 . 1 8 2 . 2 . 5 . 10 2 1 3 . 8 . 8 11 7 39 25 4 8 3 Storage 24 | 1 1 . . . . . . . . 8 . . . . 2 1 1 . . 1 . 1 . . 1 . . 3 . 1 3 Processor 14 | . . . . . 2 2 . . . 1 . . . . . . 3 . . . . 1 . 1 . . . 2 . . 2 Hackware 9 | . . . . . 1 1 . . . . . . . . 1 . 1 . . . . 2 . . . . . . . 1 2 Protection 86 | . 2 . . . 10 4 3 . . 11 1 1 1 2 2 1 2 . . 2 1 5 2 2 1 2 17 2 . 3 9 Artifact . | . . . . . . . . . . . . . . . . . . . . . . . . . . . . . . . . Weapon 95 | 2 8 6 . 2 14 5 . . 2 16 . . . 1 1 . 4 2 1 . . . . 1 1 . 5 3 . 7 14 Energy Gun 5 | 1 . . . . 1 1 . . . 2 . . . . . . . . . . . . . . . . . . . . . Energy Cannon 19 | . . . . . . . . . . 4 . . . 1 . . . . 1 . . . . 1 . . 1 1 . 3 7 Ballistic Gun 22 | 1 3 3 . 2 8 1 . . . . . . . . . . . . . . . . . . 1 . . . . . 3 Ballistic Cannon 21 | . 5 3 . . 1 3 . . 1 2 . . . . . . . . . . . . . . . . 1 1 . 3 1 Launcher 5 | . . . . . . . . . . . . . . . . . 1 2 . . . . . . . . . . . . 2 Special Weapon 15 | . . . . . 2 . . . 1 4 . . . . 1 . 3 . . . . . . . . . 1 1 . 1 1 Impact Weapon 6 | . . . . . . . . . . 4 . . . . . . . . . . . . . . . . 2 . . . . Slashing Weapon . | . . . . . . . . . . . . . . . . . . . . . . . . . . . . . . . . Piercing Weapon . | . . . . . . . . . . . . . . . . . . . . . . . . . . . . . . . . Special Melee Weapon 2 | . . . . . 2 . . . . . . . . . . . . . . . . . . . . . . . . . . Unidentified Prototypes 65 | . 1 . . . 3 4 . . 1 14 . . . 3 . . 8 . . 3 . . . 5 . . 8 4 . 6 5 Corrupted Parts 4 | . . . . . . . . . . . . . . 1 2 . . . . . . . . . . . . . . 1 . System Corruption 17 | . . . . . . . . . . . . . . 2 10 . . . . . . . . . . . . . . 5 . Parts Lost 90 | . 1 . . . 9 . . . . 7 . . . . . . 4 . . . . 1 . 1 . . 1 5 . 5 56 Power 11 | . 1 . . . . . . . . 1 . . . . . . . . . . . . . . . . . . . 1 8 Propulsion 25 | . . . . . 5 . . . . 3 . . . . . . . . . . . . . . . . . 1 . 1 15 Utility 44 | . . . . . 3 . . . . 3 . . . . . . 4 . . . . 1 . 1 . . 1 4 . 3 24 Weapon 10 | . . . . . 1 . . . . . . . . . . . . . . . . . . . . . . . . . 9 Highest Loss Streak 12 | . 1 . . . 3 . . . . 4 . . . . . . 1 . . . . 1 . 1 . . 1 2 . 2 12 To Critical Strikes 1 | . . . . . 1 . . . . . . . . . . . . . . . . . . . . . . . . . . Average Slot Usage (%) 81 | . 98 100 100 100 89 83 83 84 84 82 92 86 81 79 72 80 74 75 75 61 75 77 78 75 78 76 74 75 67 77 73 Engine 3 | . 13 14 14 14 8 7 7 7 7 4 . . . . . . . . . . . . . . . . . . . . . Reactor 2 | . . . . . . . . . . 1 7 6 6 6 5 6 5 5 5 5 5 5 5 5 5 4 4 4 4 8 6 Treads 15 | . 28 28 28 28 26 22 22 23 23 12 . . . 4 5 6 10 11 11 11 11 9 10 10 10 14 13 13 12 12 4 Leg 3 | . . . . . . . . . . 6 23 20 20 8 5 6 . . . . . . . . . . . . . . 14 Device 11 | . . . . . 2 7 7 7 7 8 14 13 13 13 16 13 17 21 23 20 17 21 21 18 14 18 16 20 19 21 11 Storage 9 | . 14 14 14 14 9 7 7 7 7 8 15 13 13 13 8 13 10 10 11 8 10 10 10 10 10 9 8 9 8 8 8 Processor 11 | . . . . . 10 19 23 23 23 21 15 13 7 6 3 . 6 5 5 5 5 6 10 12 15 14 14 9 8 8 9 Protection 8 | . 13 14 14 14 12 6 6 7 7 4 . 6 6 11 10 19 7 5 5 5 11 10 10 9 10 4 6 6 3 7 7 Energy Cannon 5 | . . . . . . . . . . 1 15 13 12 12 6 13 10 10 10 2 11 10 10 7 10 9 7 8 8 6 8 Ballistic Gun 2 | . 7 . . 8 16 . . . . . . . . . . . . . . . . . . . . . . . . . . Ballistic Cannon 3 | . 19 27 28 19 . 6 7 7 7 2 . . . . . . . . . . . . . . . . . . . . . Naked Turns 39 | . . . . . . . . . . . . . . . . . . . . . . . . . . . . . . . 39 Heaviest Build 206 | 12 96 96 96 96 127 130 128 128 128 129 129 160 174 174 171 171 171 160 160 165 165 174 167 167 168 164 168 175 163 192 206 Greatest Support 270 | 40 40 40 40 40 65 65 65 65 70 88 84 84 84 84 100 100 180 160 160 180 180 180 180 180 160 240 270 270 270 270 240 Greatest Overweight (x) 5 | 2 2 2 2 2 2 3 1 1 3 1 1 1 2 2 2 1 1 . . . . 1 . 1 1 . . . . 1 5 Average Overweight (x) . | . 1 2 2 2 1 1 1 1 1 . 1 1 1 1 . 1 . . . . . . . . 1 . . . . . . Largest Inventory Capacity 27 | 8 25 25 25 25 25 25 25 25 25 25 25 25 25 25 25 25 25 25 25 25 25 25 25 25 25 25 25 27 27 27 27 Average Capacity 23 | 7 24 25 25 25 25 25 25 25 25 18 25 25 25 25 11 25 24 25 25 17 25 25 25 25 25 25 25 25 27 27 26 Most Carried 27 | 7 25 25 25 25 25 25 25 25 25 25 25 25 25 25 25 25 25 25 25 25 24 25 25 25 25 24 25 25 27 27 27 Average Carried 22 | 3 17 24 25 24 24 24 25 24 24 15 24 24 24 24 10 25 22 24 24 15 23 24 25 24 24 23 24 24 25 26 25 Final Capacity 27 | 8 25 25 25 25 25 25 25 25 25 25 25 25 25 25 25 25 25 25 25 25 25 25 25 25 25 25 25 27 27 27 27 Final Carried 27 | 6 25 25 25 25 25 25 25 25 25 25 25 25 25 25 25 25 25 25 25 24 24 25 25 25 25 23 25 24 25 27 21 Class Distribution -------------------- 34% | Scavenger-Mutant 23% | Mutant 19% | Golem 3% | Alien-Mutant 3% | Commander-Golem 3% | Skirmisher Dominant Class ---------------- Mutant | -10/Materials Mutant | -10/Mines Mutant | -10/Exiles Mutant | -9/Mines Scavenger-Mutant | -8/Materials Scavenger-Mutant | -7/Factory Scavenger-Mutant | -7/Lower Caves Scavenger-Mutant | -7/Lower Caves Scavenger-Mutant | -7/Zion Mutant | -7/Deep Caves Golem | -6/Proximity Caves Golem | -6/Factory Commander-Golem | -6/Extension Mutant | -6/Cetus Scavenger-Mutant | -6/Archives Mutant | -6/Hub_04(d) Golem | -5/Factory Golem | -5/Upper Caves Golem | -5/Upper Caves Golem | -5/Zhirov Golem | -4/Proximity Caves Golem | -4/Factory Golem | -4/Upper Caves Mutant | -4/Warlord Golem | -3/Proximity Caves Skirmisher | -3/Research Skirmisher | -3/Quarantine Alien-Mutant | -3/Section 7 Generator-Mutant | -2/Research Generator-Mutant | -2/Testing Alien-Tank | -1/Access Resources | -11 -10 -10 -10 -9 -8 -7 -7 -7 -7 -7 -6 -6 -6 -6 -6 -6 -5 -5 -5 -5 -4 -4 -4 -4 -3 -3 -3 -3 -2 -2 -1 ----------- Run | Scr Mat Min Exi Min Mat Fac Low Low Zio Dee Pro Fac Ext Cet Arc Hub Fac Upp Upp Zhi Pro Fac Upp War Pro Res Qua Sec Res Tes Acc Matter Collected 12218 | 243 658 208 . 48 1895 1108 250 46 109 780 47 . 168 83 261 20 314 144 67 . 135 243 26 132 140 100 779 535 . 819 2860 Remotely 299 | . . . . . . 289 . . . . . . . . . . . 10 . . . . . . . . . . . . . Salvage Created 37289 | . 944 166 . 48 2974 983 75 . . 1440 75 . 1231 137 425 634 2323 234 552 . 249 2147 . 1703 939 189 2973 2932 . 2334 11582 Parts 1683 | . 60 22 . 7 189 40 1 . . 28 3 . 51 7 42 23 105 7 28 . 10 108 . 52 32 12 152 154 . 105 445 Haulers Intercepted 17 | . 2 . . . 6 3 . . . . . . . . . . 2 . . . . 1 . . . . 1 . . . 2 Recyclers Shooed 16 | . . 1 . . 5 2 . . . . . . 1 . . . 2 . . . . 2 . . . 1 . 1 . . 1 Parts Field Recycled . | . . . . . . . . . . . . . . . . . . . . . . . . . . . . . . . . Retrieved Matter . | . . . . . . . . . . . . . . . . . . . . . . . . . . . . . . . . Parts Self-Destructed 81 | . . . . . . . 1 . . . 5 . . . . . . 5 28 . 10 . . . 32 . . . . . . Prevented 7 | . . . . . . . . . . . . . . . . . . . 7 . . . . . . . . . . . . Kills | -11 -10 -10 -10 -9 -8 -7 -7 -7 -7 -7 -6 -6 -6 -6 -6 -6 -5 -5 -5 -5 -4 -4 -4 -4 -3 -3 -3 -3 -2 -2 -1 ------- Run | Scr Mat Min Exi Min Mat Fac Low Low Zio Dee Pro Fac Ext Cet Arc Hub Fac Upp Upp Zhi Pro Fac Upp War Pro Res Qua Sec Res Tes Acc Combat Hostiles Destroyed 566 | . 21 12 . 3 41 20 3 . . 48 3 . 13 2 1 9 39 9 11 . 3 29 . 27 13 2 42 36 . 29 150 Melee 4 | . . . . . . . . . . 4 . . . . . . . . . . . . . . . . . . . . . Guns 73 | . 2 9 . 3 41 . . . . . . . . . . . . . . . . . . . . . . . . . 18 Cannons 402 | . 19 3 . . . 20 3 . . 4 3 . 13 2 1 9 28 2 11 . 3 29 . 27 13 2 38 33 . 26 113 AOE 79 | . . . . . . . . . . 33 . . . . . . 11 7 . . . . . . . . 3 3 . 3 19 Classes Destroyed 32 | . 8 . . . 6 2 1 . . 3 . . 1 . . 1 2 . 2 . . . . 1 . . 2 1 . 1 1 Worker 25 | . 1 . . . 6 3 . . . . . . . . . . 1 . . . . . . . . . . 1 . 4 9 Builder 22 | . . . . . 1 . . . . . . . . . . 1 2 . . . . . . . . 1 2 . . 5 10 Tunneler 2 | . 1 . . . 1 . . . . . . . . . . . . . . . . . . . . . . . . . . Hauler 17 | . 2 . . . 6 3 . . . . . . . . . . 2 . . . . 1 . . . . 1 . . . 2 Recycler 24 | . 2 . . . 7 3 . . . . . . 2 . . . 2 . . . . 1 . . . . . 3 . . 4 Carrier 1 | . . . . . . . . . . . . . . . . . . . . . . . . . . . . . . . 1 Minesweeper 1 | . . . . . . . . . . . . . . . . . . . 1 . . . . . . . . . . . . Mechanic 5 | . . . . . . . . . . . . . . . . . 1 . . . . . . . . . . . . . 4 Operator 18 | . 1 . . . 1 . . . . . . . 1 . 9 1 2 . . . . . . . . . 1 1 . . 1 Watcher 28 | . 2 . . . 5 2 . . . . . . 1 . . 2 1 . . . . 4 . . . 1 3 . . 1 6 Swarmer 76 | . 3 12 . 3 10 1 . . . . 3 . 1 . . . 4 4 6 . . 4 . 1 2 . 8 5 . . 9 Saboteur 6 | . . . . . . . . . . . . . . . . . 1 . . . . . . 3 . . . . . . 2 Grunt 197 | . 18 . . . 15 11 . . . . . . 5 . . 5 7 2 3 . . 12 . 10 3 . 16 7 . 14 69 Brawler 14 | . . . . . 1 . . . . . . . . . . . 3 2 1 . . . . 1 2 . . . . . 4 Duelist 18 | . . . . . 1 . . . . . . . 1 . . 1 . . 1 . . . . . 1 . . . . 2 11 Protector 7 | . . . . . . . . . . . . . . . . 1 2 . . . . . . 1 . . . . . . 3 Researcher 5 | . . . . . . . . . . . . . . . . . . . . . . . . . . . 1 3 . 1 . Sentry 37 | . . . . . 11 3 . . . . . . 4 . 1 2 3 1 . . 1 2 . . 1 . . . . . 8 Demolisher 3 | . . . . . . . . . . . . . 1 . . . . . . . . . . 2 . . . . . . . Specialist 11 | . . . . . 2 . . . . . . . . . . . 2 . . . . . . 2 . . 3 . . . 2 Hunter 37 | . . . . . . 1 2 . . . . . . . . . 9 . . . . . . 2 4 . . 4 . 1 14 Programmer 66 | . . . . . . 4 . . . . . . . . . . 7 . . . 1 11 . 3 . 2 14 10 . 4 10 Heavy 3 | . . . . . 1 . . . . . . . . . . . 1 . . . . . . . . . . 1 . . . Q-Series 12 | . . . . . . . . . . . . . . . . . . . . . . . . . . . . . . 4 8 Behemoth 3 | . . . . . . . . . . . . . . . . . . . 1 . 1 . . . . . . . . . 1 Cetus Guard 2 | . . . . . . . . . . . . . . 2 . . . . . . . . . . . . . . . . . S7 Guard 3 | . . . . . . . . . . . . . . . . . . . . . . . . . . . . 3 . . . Enhanced Grunt 1 | . . . . . . . . . . 1 . . . . . . . . . . . . . . . . . . . . . Tracker 8 | . . . . . . . . . . . . . . . . . . . . . . . . . . . . 2 . 2 4 Combat Programmer 8 | . . . . . . . . . . . . . . . . . . . . . . . . . . . . 2 . 2 4 Investigator 1 | . . . . . . . . . . . . . . . . . . . . . . . . . . . . . . . 1 Striker 2 | . . . . . . . . . . . . . . . . . . . . . . . . 2 . . . . . . . Executioner 3 | . . . . . . . . . . . . . . . . . . . . . . . . . . . . 2 . . 1 Fortress 1 | . . . . . . . . . . . . . . . . . . . . . . . . . . . 1 . . . . Z-Technician 1 | . . . . . . . . . . 1 . . . . . . . . . . . . . . . . . . . . . Assembler 2 | . . . . . . . . . . 2 . . . . . . . . . . . . . . . . . . . . . Assembled 37 | . . . . . . . . . . 37 . . . . . . . . . . . . . . . . . . . . . Golem 11 | . . . . . . . . . . 11 . . . . . . . . . . . . . . . . . . . . . Thug 1 | . . . . . . . . . . . . . 1 . . . . . . . . . . . . . . . . . . Guerrilla 1 | . . . . . . . . . . . . . 1 . . . . . . . . . . . . . . . . . . Mutant 2 | . . . . . . . 1 . . 1 . . . . . . . . . . . . . . . . . . . . . Best Kill Streak 39 | . 5 3 . 3 8 4 1 . . 39 3 . 2 1 3 7 15 5 3 . 1 7 . 12 4 2 7 9 . 5 23 Combat Bots Only 37 | . 5 3 . 3 3 3 1 . . 37 3 . 2 1 1 7 12 5 3 . 1 7 . 12 4 2 6 8 . 4 23 Max Kills in Single Turn 15 | . 2 1 . 1 2 3 1 . . 15 1 . 2 1 1 1 8 4 2 . 1 2 . 1 1 1 2 4 . 2 9 Gunslinging . | . . . . . . . . . . . . . . . . . . . . . . . . . . . . . . . . Exploded 14 | . . . . . . . . . . 14 . . . . . . 6 4 . . . . . . . . 2 3 . 2 4 Melee 1 | . . . . . . . . . . 1 . . . . . . . . . . . . . . . . . . . . . Uniques/NPCs Destroyed 1 | . . . . . . . . . . 1 . . . . . . . . . . . . . . . . . . . . . Z-Imprinter (-7/Deep Caves) Combat | -11 -10 -10 -10 -9 -8 -7 -7 -7 -7 -7 -6 -6 -6 -6 -6 -6 -5 -5 -5 -5 -4 -4 -4 -4 -3 -3 -3 -3 -2 -2 -1 -------- Run | Scr Mat Min Exi Min Mat Fac Low Low Zio Dee Pro Fac Ext Cet Arc Hub Fac Upp Upp Zhi Pro Fac Upp War Pro Res Qua Sec Res Tes Acc Damage Taken 38717 | . 431 352 . 111 2953 1715 290 . . 1068 165 . 728 157 169 703 2075 363 377 . 300 1746 . 182 532 57 2971 3044 . 3353 14875 Core 3498 | . 111 44 . 12 325 96 16 . . 185 28 . 59 . 21 15 250 . 18 . . 95 . 33 53 . 185 204 . 259 1489 Absorbed by Shields 2705 | . . . . . . . . . . . . . 31 44 . . . . . . . . . . . . . 2630 . . . Reduced by Siege Mode 2695 | . . . . . . . . . . . . . . . . 14 81 38 36 . 7 121 . 8 29 6 272 350 . 378 1355 Redirected to Shielding 312 | . . . . . 22 . . . . 104 . . . . . . . . . . . . . . . . . . . . 186 Regen/Repaired (Parts) 6346 | . 128 . . . 805 1101 . . . . . . . . . . 958 . . . . 1485 . . . . 891 . . 978 . Core Remaining (%) 62 | 100 . . . 33 40 . . . . . 53 . . . . 88 . . . . 73 . . . 84 . . 64 . 82 6 Volleys Fired 1775 | . 57 27 . 6 199 107 19 . 15 46 12 . 65 9 66 23 117 15 22 . 7 92 . 55 62 18 158 158 3 99 318 Largest 4 | . 2 2 . 2 2 1 1 . 1 2 2 . 2 2 2 2 2 2 2 . 2 2 . 2 2 2 2 2 2 2 4 Hottest 360 | . 70 70 . 46 60 60 60 . 60 119 50 . 50 50 50 50 50 50 50 . 50 50 . 50 50 50 50 50 50 100 360 Shots Fired 2987 | . 110 32 . 12 385 109 19 . 15 54 24 . 117 17 73 46 185 18 45 . 18 158 . 107 100 33 239 274 6 176 615 Gun 545 | . 26 22 . 12 376 . . . . 8 . . . . . . . . . . . . . . . . . . . . 101 Cannon 2337 | . 84 10 . . 7 109 19 . 15 8 24 . 117 17 38 46 178 12 45 . 18 158 . 107 100 33 237 273 6 174 502 Launcher 13 | . . . . . . . . . . . . . . . . . . 6 . . . . . . . . . . . . 7 Special 92 | . . . . . 2 . . . . 38 . . . . 35 . 7 . . . . . . . . . 2 1 . 2 5 Kinetic 827 | . 110 32 . 12 383 109 19 . 15 . . . . . . . . . . . . . . . . . . . . 13 134 Thermal 1923 | . . . . . 2 . . . . 27 24 . 117 17 73 46 178 12 45 . 18 158 . 107 100 33 225 273 6 161 301 Explosive 40 | . . . . . . . . . . 11 . . . . . . 7 6 . . . . . . . . 2 1 . 2 11 Electromagnetic 16 | . . . . . . . . . . 16 . . . . . . . . . . . . . . . . . . . . . Slashing 159 | . . . . . . . . . . . . . . . . . . . . . . . . . . . . . . . 159 Entropic 22 | . . . . . . . . . . . . . . . . . . . . . . . . . . . 12 . . . 10 Robot Hit Streak 56 | . 14 10 . 6 22 13 12 . . 8 12 . 16 10 11 25 18 15 18 . 23 22 . 37 24 14 21 21 1 28 56 Robot Miss Streak 10 | . 3 2 . 1 4 4 2 . . 2 1 . 2 1 3 3 2 2 3 . 1 2 . 2 2 2 2 6 2 3 10 Penetration Max 1 | . . . . . . . . . . . . . . . . . . . . . . . . . . . . . . . 1 Secondary Targets 5 | . . . . . 3 . . . . . . . . . . . . . . . . . . . . . . . . . 2 Max Gunslinging Chain 1 | . . . . . 1 . . . . . . . . . . . . . . . . . . . . . . . . . 1 Shots Hit Robots 2031 | . 68 26 . 7 273 69 14 . . 76 8 . 59 13 50 32 95 15 27 . 13 114 . 66 54 14 138 171 2 135 492 Core Hits 1306 | . 32 12 . 3 111 28 4 . . 69 3 . 29 5 18 21 82 13 18 . 6 48 . 44 23 5 64 63 1 68 536 Critical Kills 4 | . . . . . . . . . . 4 . . . . . . . . . . . . . . . . . . . . . Critical Parts Destroyed 9 | . . . . . 2 . . . . 6 . . . . . . . . . . . . . . . . . . . . 1 Critical Strikes 63 | . 5 1 . . 3 4 3 . . 11 . . . . 1 . . . . . . . . . . . 4 . . 1 30 Destroy 3 | . . . . . 2 . . . . . . . . . . . . . . . . . . . . . . . . . 1 Blast 22 | . 5 1 . . 1 4 3 . . . . . . . . . . . . . . . . . . . . . . 1 7 Smash 10 | . . . . . . . . . . 10 . . . . . . . . . . . . . . . . . . . . . Sever 21 | . . . . . . . . . . 1 . . . . 1 . . . . . . . . . . . 1 . . . 18 Sunder 7 | . . . . . . . . . . . . . . . . . . . . . . . . . . . 3 . . . 4 Melee Attacks 47 | . . . . . . . . . . 42 . . . . . . . . . . . . . . . . 5 . . . . Kinetic 5 | . . . . . . . . . . . . . . . . . . . . . . . . . . . 5 . . . . Impact 42 | . . . . . . . . . . 42 . . . . . . . . . . . . . . . . . . . . . Slashing . | . . . . . . . . . . . . . . . . . . . . . . . . . . . . . . . . Piercing . | . . . . . . . . . . . . . . . . . . . . . . . . . . . . . . . . Sneak Attacks . | . . . . . . . . . . . . . . . . . . . . . . . . . . . . . . . . Combat Hostiles . | . . . . . . . . . . . . . . . . . . . . . . . . . . . . . . . . Follow-up Attacks . | . . . . . . . . . . . . . . . . . . . . . . . . . . . . . . . . Damage Inflicted 114683 | . 1207 456 . 106 4536 3868 549 . . 6242 345 . 2947 655 1481 1840 7963 1433 1474 . 582 5618 . 3927 2369 710 8337 9320 84 7434 41200 Guns 8267 | . 259 316 . 106 4232 . . . . 104 . . . . . . . . . . . . . . . . . . . . 3250 Cannons 81238 | . 931 134 . . 169 3624 549 . . 163 345 . 2947 655 1265 1455 4515 472 1458 . 582 5597 . 3927 2369 710 7525 8777 84 6436 26549 Explosions 21676 | . . . . . . 234 . . . 3797 . . . . . 385 3158 961 . . . . . . . . 612 490 . 887 11152 Melee 1731 | . . . . . . . . . . 1607 . . . . . . . . . . . . . . . . 124 . . . . Ramming 434 | . 17 6 . . 112 10 . . . . . . . . . . 62 . 16 . . 21 . . . . 8 21 . 59 102 Kinetic 17304 | . 1190 450 . 106 4401 3624 549 . . . . . . . . . . . . . . . . . . . 124 . . 1033 5827 Thermal 66533 | . . . . . 23 234 . . . 168 345 . 2947 655 1481 1455 4900 472 1458 . 582 5597 . 3927 2369 710 6804 8777 84 5450 18095 Explosive 12495 | . . . . . . . . . . 3797 . . . . . . 2742 961 . . . . . . . . 612 490 . 495 3398 Electromagnetic 1028 | . . . . . . . . . . 267 . . . . . 385 31 . . . . . . . . . . . . 345 . Impact 1607 | . . . . . . . . . . 1607 . . . . . . . . . . . . . . . . . . . . . Slashing 13884 | . . . . . . . . . . 403 . . . . . . 228 . . . . . . . . . 68 32 . 52 13101 Piercing . | . . . . . . . . . . . . . . . . . . . . . . . . . . . . . . . . Entropic 1398 | . . . . . . . . . . . . . . . . . . . . . . . . . . . 721 . . . 677 Highest Corruption 24 | . . . . . . 3 3 . . 1 1 . 4 6 7 . 5 5 5 5 5 8 8 8 . . 12 20 . 11 24 Average Corruption 5 | . . . . . . 2 2 . . 1 1 . 3 5 4 . 3 5 5 5 5 2 8 8 . . 4 15 . 5 16 Corruption Purged 26 | . . . . . . . 3 . . . . . . . 16 . . . . . . . . . . . 7 . . . . Corruption Blocked 9 | . . . . . . . . . . . . . . . . . . . . . . . . 9 . . . . . . . Effects 626 | . . . . . . 49 7 . . 17 9 . 57 14 15 . 25 19 14 17 23 26 6 2 . . 55 97 . 41 133 Message Errors 147 | . . . . . . 15 1 . . 4 3 . 11 1 4 . 8 2 4 4 6 7 1 . . . 12 26 . 10 28 Matter Fused 156 | . . . . . . 11 3 . . 2 3 . 14 7 4 . 6 3 4 4 3 8 1 1 . . 14 19 . 11 38 Heat Flow Errors 70 | . . . . . . 1 . . . 4 2 . 5 2 3 . 2 6 . 3 3 2 . . . . 11 10 . 8 8 Energy Discharges 69 | . . . . . . 7 2 . . 3 . . 11 3 2 . 4 2 1 1 4 4 1 . . . 6 9 . 3 6 Parts Rejected 7 | . . . . . . . . . . . . . 1 . . . 1 1 . . . . . . . . . 1 . . 3 Data Loss (minor) 66 | . . . . . . 5 1 . . 2 1 . 8 . 2 . . 4 2 4 . 2 1 1 . . 4 13 . 6 10 Data Loss (major) 32 | . . . . . . 4 . . . 1 . . 1 1 . . 2 . 1 . 3 1 2 . . . 2 4 . 3 7 Misfires 34 | . . . . . . 3 . . . . . . 3 . . . 1 1 1 . 4 1 . . . . 3 10 . . 7 Alerts 12 | . . . . . . 2 . . . 1 . . 1 . . . . . 1 1 . 1 . . . . 2 . . . 3 Misdirections 3 | . . . . . . . . . . . . . . . . . . . . . . . . . . . . 2 . . 1 Weapon Failures 30 | . . . . . . 1 . . . . . . 2 . . . 1 . . . . . . . . . 1 3 . . 22 Overload Shots . | . . . . . . . . . . . . . . . . . . . . . . . . . . . . . . . . Overflow Damage 5344 | . . . . . 31 469 30 . . 586 25 . 67 . 162 103 242 85 53 . 4 498 . 96 75 43 670 453 . 405 1247 Projectiles 3767 | . . . . . 31 354 30 . . 73 25 . 67 . 162 46 173 17 53 . 4 498 . 96 75 43 642 428 . 347 603 Explosions 1170 | . . . . . . 115 . . . 124 . . . . . 57 52 68 . . . . . . . . 28 24 . 58 644 Melee 407 | . . . . . . . . . . 389 . . . . . . 17 . . . . . . . . . . 1 . . . Knockbacks 68 | . 15 . . . 1 19 1 . . 15 . . . . . . 1 . . . . . . . . . . . . 3 13 Impact 17 | . . . . . 1 . . . . 15 . . . . . . 1 . . . . . . . . . . . . . . Kinetic 48 | . 14 . . . . 19 1 . . . . . . . . . . . . . . . . . . . . . . 2 12 Secondary 3 | . 1 . . . . . . . . . . . . . . . . . . . . . . . . . . . . 1 1 Self-Inflicted Damage 1011 | . . . . . . . . . . . . . . . . 136 24 41 . . . . . . . . . . . 68 742 Shots 9 | . . . . . . . . . . . . . . . . 2 1 1 . . . . . . . . . . . 2 3 Rammed 31 | . 3 2 . . 13 1 . . . . . . . . . . 2 . 1 . . 1 . . . . 1 1 . 4 2 Targets Rammed 40 | . 5 2 . . 15 1 . . . . . . . . . . 2 . 1 . . 1 . . . . 1 1 . 5 6 Kicked 4 | . . . . . . . . . . . . . . . . . . . . . . . . . . . . . . . 4 Crushed 5 | . 2 . . . 2 . . . . . . . . . . . . . . . . . . . . . . . . 1 . Highest Temperature 468 | . 216 105 . . 172 342 282 . 211 272 184 . 277 172 232 18 265 227 . 191 209 124 . . . . 468 204 . 201 198 Average Temperature 80 | . 60 54 . . 33 81 104 . 112 106 46 . 90 90 84 7 133 103 . 92 101 33 . . . . 139 73 . 73 120 Received Heat Transfer 4898 | . 228 . . . 774 720 . . . 123 . . 287 12 18 216 171 108 66 . 36 404 . . . . 234 169 . 162 1170 Effects 6 | . . . . . . 4 . . . . . . . . 1 . . . . . . . . . . . 1 . . . . Energy Bleed 1 | . . . . . . 1 . . . . . . . . . . . . . . . . . . . . . . . . . Interference 4 | . . . . . . 3 . . . . . . . . 1 . . . . . . . . . . . . . . . . Short Circuit 1 | . . . . . . . . . . . . . . . . . . . . . . . . . . . 1 . . . . Siege Activations 77 | . . . . . . . . . . . . . . . . 1 5 1 2 . 3 13 . 3 6 1 12 12 . 9 9 Total Turns 2006 | . . . . . . . . . . . . . . . . 28 130 32 22 . 33 342 . 151 101 11 257 355 . 207 337 Longest Duration 128 | . . . . . . . . . . . . . . . . 28 67 32 15 . 16 65 . 128 47 11 55 79 . 60 108 Robots Corrupted 3 | . . . . . . . . . . 2 . . . . . . . . . . . . . . . . . . . 1 . Combat Hostiles 2 | . . . . . . . . . . 2 . . . . . . . . . . . . . . . . . . . . . Parts Fried 9 | . . . . . . . . . . . . . . . . 2 . . 2 . . . . . . . . . . 5 . Impact Corruptions 13 | . . . . . . . . . . 10 . . . . . . 1 . . . . . . . . . . 1 . . 1 Robots Melted . | . . . . . . . . . . . . . . . . . . . . . . . . . . . . . . . . Combat Hostiles . | . . . . . . . . . . . . . . . . . . . . . . . . . . . . . . . . Parts Melted 34 | . . . . . . 2 . . . . 1 . . . 1 1 1 . . . 1 4 . 3 . 2 4 2 . 2 10 Heat Transferred 32221 | . . . . . 74 150 . . . 703 200 . 1536 375 1465 761 2750 250 750 . 325 2975 . 1795 1325 350 3125 3925 50 3000 6337 Parts Sabotaged 3 | . . . . . . . . . . . . . . . . . . . . . . . . . . . . . . . 3 Parts Stolen . | . . . . . . . . . . . . . . . . . . . . . . . . . . . . . . . . Parts Stripped . | . . . . . . . . . . . . . . . . . . . . . . . . . . . . . . . . Power Chain Reactions 4 | . . . . . . . . . . . . . . . . . . . . . . . . . . . . . . 4 . Missiles Intercepted . | . . . . . . . . . . . . . . . . . . . . . . . . . . . . . . . . Alert | -11 -10 -10 -10 -9 -8 -7 -7 -7 -7 -7 -6 -6 -6 -6 -6 -6 -5 -5 -5 -5 -4 -4 -4 -4 -3 -3 -3 -3 -2 -2 -1 ------- Run | Scr Mat Min Exi Min Mat Fac Low Low Zio Dee Pro Fac Ext Cet Arc Hub Fac Upp Upp Zhi Pro Fac Upp War Pro Res Qua Sec Res Tes Acc Peak Influence 4539 | . 263 158 . 70 427 478 . . . . . 4 922 752 395 1008 984 . . . . 377 . . . 104 396 717 391 726 4539 Initial 516 | . . 88 . . 27 146 . . . . . . 1 516 220 . 493 . . . . . . . . . . 207 376 60 403 Average 353 | . 113 51 . 18 202 213 . . . . . . 366 579 117 373 526 . . . . 179 . . . 43 218 411 165 308 1567 Maximum Alert Level 5 | . 1 . . . 2 2 . . . . . . 3 3 1 3 3 . . . . 1 . . . . 1 3 1 3 5 Low Security (%) 45 | 100 84 100 . 100 53 43 . . . . . 100 46 . 71 23 8 . . . . 47 . . . 100 48 5 79 34 . Level 1 30 | . 15 . . . 45 45 . . . . . . 10 . 28 29 23 . . . . 52 . . . . 51 43 20 39 . Level 2 12 | . . . . . . 10 . . . . . . 13 87 . 44 44 . . . . . . . . . . 41 . 26 23 Level 3 5 | . . . . . . . . . . . . . 28 12 . 1 22 . . . . . . . . . . 9 . . 10 Level 4 1 | . . . . . . . . . . . . . . . . . . . . . . . . . . . . . . . 21 Level 5 2 | . . . . . . . . . . . . . . . . . . . . . . . . . . . . . . . 25 High Security 1 | . . . . . . . . . . . . . . . . . . . . . . . . . . . . . . . 18 Max Security . | . . . . . . . . . . . . . . . . . . . . . . . . . . . . . . . . Sterilizations 1 | . . . . . . . . . . . . . . . . . . . . . . . . . . . . . . . 1 Squads Dispatched 122 | . 6 . . . 7 10 . . . . . . 4 . . 4 11 . . . . 9 . . . 2 8 13 . 12 36 Investigation 16 | . 5 . . . 2 1 . . . . . . 3 . . . 1 . . . . 1 . . . 1 1 . . 1 . Extermination 30 | . . . . . . 5 . . . . . . . . . . 2 . . . . 5 . . . . 5 4 . 4 5 Reinforcement 34 | . 1 . . . 3 4 . . . . . . . . . 2 5 . . . . 3 . . . 1 2 5 . 3 5 Assault 23 | . . . . . . . . . . . . . 1 . . 1 3 . . . . . . . . . . 1 . 1 16 Garrison 7 | . . . . . 2 . . . . . . . . . . 1 . . . . . . . . . . . . . . 4 Intercept 12 | . . . . . . . . . . . . . . . . . . . . . . . . . . . . 3 . 3 6 Searches Triggered . | . . . . . . . . . . . . . . . . . . . . . . . . . . . . . . . . Construction Impeded 3 | . . . . . . . . . . . . . . . . . 1 . . . . . . . . . . 1 . . 1 Haulers Reinforced 7 | . . . . . . 2 . . . . . . . . . . . . . . . 2 . . . . 1 . . . 2 Active Scanning Responses . | . . . . . . . . . . . . . . . . . . . . . . . . . . . . . . . . Cargo Convoy Interrupts 1 | . . . . . . . . . . . . . . . . . 1 . . . . . . . . . . . . . . Stealth | -11 -10 -10 -10 -9 -8 -7 -7 -7 -7 -7 -6 -6 -6 -6 -6 -6 -5 -5 -5 -5 -4 -4 -4 -4 -3 -3 -3 -3 -2 -2 -1 --------- Run | Scr Mat Min Exi Min Mat Fac Low Low Zio Dee Pro Fac Ext Cet Arc Hub Fac Upp Upp Zhi Pro Fac Upp War Pro Res Qua Sec Res Tes Acc Distress Signals 29 | . 2 . . . 4 1 . . . . . . 1 2 . 2 . . . . . . . . . 2 1 1 2 2 9 Communications Jammed 72 | . . . . . . . . . . . . . . . . . . . . . . 4 . . . . 1 29 . 22 16 Distress Signals 64 | . . . . . . . . . . . . . . . . . . . . . . 4 . . . . 1 21 . 22 16 Times Spotted 877 | . 37 12 . 3 83 27 3 . . 57 4 . 43 15 57 19 51 9 12 . 2 37 . 47 11 4 45 55 1 40 203 Peak Tracking Total 37 | . 6 3 . 3 5 4 1 . . 37 4 . 5 5 1 6 12 5 4 . 1 4 . 9 2 1 4 6 1 5 17 Tactical Retreats 18 | . 4 . . . 3 . . . . 1 . . . . . 2 . . . . . . . . . . . 2 . . 6 Traps | -11 -10 -10 -10 -9 -8 -7 -7 -7 -7 -7 -6 -6 -6 -6 -6 -6 -5 -5 -5 -5 -4 -4 -4 -4 -3 -3 -3 -3 -2 -2 -1 ------- Run | Scr Mat Min Exi Min Mat Fac Low Low Zio Dee Pro Fac Ext Cet Arc Hub Fac Upp Upp Zhi Pro Fac Upp War Pro Res Qua Sec Res Tes Acc Traps Triggered 16 | . 3 . . . 1 1 . . . . . . 4 . . . 2 . . . . . . . . . 1 1 . 3 . Indirectly 3 | . . . . . . . . . . . . . . . . . . . . . . . . . . . . . . 3 . Trap Hack Attempts 29 | . . . . . 29 . . . . . . . . . . . . . . . . . . . . . . . . . . Triggered . | . . . . . . . . . . . . . . . . . . . . . . . . . . . . . . . . Disarmed 6 | . 6 . . . . . . . . . . . . . . . . . . . . . . . . . . . . . . Reprogrammed 3 | . . . . . 3 . . . . . . . . . . . . . . . . . . . . . . . . . . Reused . | . . . . . . . . . . . . . . . . . . . . . . . . . . . . . . . . Traps Extracted . | . . . . . . . . . . . . . . . . . . . . . . . . . . . . . . . . Installed . | . . . . . . . . . . . . . . . . . . . . . . . . . . . . . . . . Triggered 18 | . . . . . . . . . . . . . . . . . . . 5 . . . . 11 1 . . . . 1 . Machines | -11 -10 -10 -10 -9 -8 -7 -7 -7 -7 -7 -6 -6 -6 -6 -6 -6 -5 -5 -5 -5 -4 -4 -4 -4 -3 -3 -3 -3 -2 -2 -1 ---------- Run | Scr Mat Min Exi Min Mat Fac Low Low Zio Dee Pro Fac Ext Cet Arc Hub Fac Upp Upp Zhi Pro Fac Upp War Pro Res Qua Sec Res Tes Acc Machines Disabled 113 | . 1 . . . 1 15 1 . . 2 . . 10 1 1 16 7 1 . . . . . 2 2 1 11 11 . 21 9 Max in Single Turn 10 | . 1 . . . 1 10 1 . . 1 . . 1 1 1 8 2 1 . . . . . 1 1 1 1 1 . 5 5 Garrison Access 9 | . . . . . 1 1 . . . . . . . . . 1 1 . . . . . . . . . 1 1 1 . 2 Network Hub 2 | . . . . . . . . . . . . . . . . 2 . . . . . . . . . . . . . . . Machines Sabotaged . | . . . . . . . . . . . . . . . . . . . . . . . . . . . . . . . . Garrisons Compromised . | . . . . . . . . . . . . . . . . . . . . . . . . . . . . . . . . Overloaded Fab Kills . | . . . . . . . . . . . . . . . . . . . . . . . . . . . . . . . . Hacking | -11 -10 -10 -10 -9 -8 -7 -7 -7 -7 -7 -6 -6 -6 -6 -6 -6 -5 -5 -5 -5 -4 -4 -4 -4 -3 -3 -3 -3 -2 -2 -1 --------- Run | Scr Mat Min Exi Min Mat Fac Low Low Zio Dee Pro Fac Ext Cet Arc Hub Fac Upp Upp Zhi Pro Fac Upp War Pro Res Qua Sec Res Tes Acc Machines Accessed 115 | . 8 . 1 1 18 10 2 . . . . 2 15 1 . . 12 . 1 4 . 6 . 4 . 2 13 7 2 5 1 Terminals 62 | . 5 . . . 11 5 . . . . . 1 13 1 . . 7 . . . . 1 . . . 1 9 6 1 1 . Fabricators 5 | . . . . . . 1 . . . . . . . . . . 1 . . . . 1 . . . . . . . 1 1 Repair Stations 15 | . 1 . . . 2 2 . . . . . 1 1 . . . 3 . . . . 1 . . . . 2 . . 2 . Recycling Units 8 | . 2 . . . 2 1 . . . . . . 1 . . . . . . . . 2 . . . . . . . . . Scanalyzers 5 | . . . . . 2 . . . . . . . . . . . . . . . . 1 . . . . 1 . . 1 . Garrison Access 7 | . . . . . 1 1 . . . . . . . . . . 1 . . . . . . . . 1 1 1 1 . . Total Hacks 412 | . 22 . 1 1 54 32 10 . . . . 2 28 3 . . 51 . 1 17 . 40 . 5 . 4 80 19 16 24 2 Successful 215 | . 16 . 1 1 30 21 10 . . . . 1 10 . . . 21 . 1 17 . 18 . 5 . 1 36 7 6 12 1 Failed 196 | . 5 . . . 24 11 . . . . . 1 18 3 . . 30 . . . . 22 . . . 3 44 12 10 12 1 Catastrophic 41 | . . . . . 1 1 . . . . . . 6 1 . . 9 . . . . 5 . . . 1 7 4 2 4 . Database Lockouts 1 | . 1 . . . . . . . . . . . . . . . . . . . . . . . . . . . . . . Manual 126 | . 14 . . . 16 4 . . 1 . . . 9 1 . . 28 . . . . 9 . . . 2 29 9 4 . . Terminals 215 | . 15 . . . 30 13 . . . . . 1 26 3 . . 33 . . . . 4 . . . 2 53 17 14 4 . Fabricators 18 | . . . . . . 3 . . . . . . . . . . 5 . . . . 6 . . . . . . . 2 2 Repair Stations 76 | . 5 . . . 8 14 . . . . . 1 1 . . . 12 . . . . 10 . . . . 10 . . 15 . Recycling Units 18 | . 2 . . . 5 1 . . . . . . 1 . . . . . . . . 9 . . . . . . . . . Scanalyzers 36 | . . . . . 10 . . . . . . . . . . . . . . . . 11 . . . . 12 . . 3 . Garrison Access 14 | . . . . . 1 1 . . . . . . . . . . 1 . . . . . . . . 2 5 2 2 . . Terminal Hacks 90 | . 5 . 1 1 9 2 10 . . . . 1 8 . . . 9 . 1 17 . . . 5 . . 11 4 5 1 . Record 19 | . . . 1 . . . 9 . . . . . . . . . . . . 5 . . . 4 . . . . . . . Part Schematic 6 | . . . . . . 1 . . . . . . . . . . . . . 4 . . . . . . 1 . . . . Robot Analysis 8 | . 2 . . . . . . . . . . . 1 . . . . . . 4 . . . . . . 1 . . . . Prototype ID Bank 19 | . 1 . . . 2 . . . . . . . 1 . . . 3 . . 4 . . . . . . 4 1 2 1 . Open Door 10 | . . . . 1 . . 1 . . . . 1 2 . . . . . 1 . . . . 1 . . . 3 . . . Branch Access Points 3 | . . . . . . 1 . . . . . . . . . . 1 . . . . . . . . . . . 1 . . Terminal Index 1 | . . . . . . . . . . . . . . . . . 1 . . . . . . . . . . . . . . Fabricator Index 1 | . . . . . . . . . . . . . . . . . 1 . . . . . . . . . . . . . . Alert Level 6 | . . . . . 3 . . . . . . . 2 . . . . . . . . . . . . . 1 . . . . Unreport Threat 10 | . . . . . 4 . . . . . . . 1 . . . 1 . . . . . . . . . 2 . 2 . . Locate Traps 1 | . . . . . . . . . . . . . . . . . 1 . . . . . . . . . . . . . . Disarm Traps 1 | . 1 . . . . . . . . . . . . . . . . . . . . . . . . . . . . . . Recall Reinforcements 1 | . . . . . . . . . . . . . . . . . . . . . . . . . . . 1 . . . . Recall Assault 1 | . . . . . . . . . . . . . . . . . 1 . . . . . . . . . . . . . . Hauler Manifests 2 | . 1 . . . . . . . . . . . . . . . . . . . . . . . . . 1 . . . . Zone Layout 1 | . . . . . . . . . . . . . 1 . . . . . . . . . . . . . . . . . . Fabricator Hacks 8 | . . . . . . 1 . . . . . . . . . . 1 . . . . 3 . . . . . . . 2 1 Load Schematic 5 | . . . . . . 1 . . . . . . . . . . 1 . . . . 2 . . . . . . . 1 . Build 3 | . . . . . . . . . . . . . . . . . . . . . . 1 . . . . . . . 1 1 Repair Station Hacks 54 | . 5 . . . 8 14 . . . . . . 1 . . . 7 . . . . 7 . . . . 5 . . 7 . Scan Component 30 | . 3 . . . 4 7 . . . . . . 1 . . . 4 . . . . 4 . . . . 3 . . 4 . Repair 24 | . 2 . . . 4 7 . . . . . . . . . . 3 . . . . 3 . . . . 2 . . 3 . Recycling Unit Hacks 4 | . . . . . 2 1 . . . . . . . . . . . . . . . 1 . . . . . . . . . Retrieve Components 4 | . . . . . 2 1 . . . . . . . . . . . . . . . 1 . . . . . . . . . Scanalyzer 21 | . . . . . 6 . . . . . . . . . . . . . . . . 5 . . . . 8 . . 2 . Insert Component 11 | . . . . . 2 . . . . . . . . . . . . . . . . 4 . . . . 3 . . 2 . Analyze 10 | . . . . . 4 . . . . . . . . . . . . . . . . 1 . . . . 5 . . . . Garrison Access Hacks 6 | . . . . . 1 1 . . . . . . . . . . 1 . . . . . . . . . 1 1 1 . . Seal Access 6 | . . . . . 1 1 . . . . . . . . . . 1 . . . . . . . . . 1 1 1 . . Unauthorized Hacks 32 | . 6 . . . 4 2 . . . . . . 1 . . . 3 . . . . 2 . . . 1 11 2 . . . Terminals 25 | . 4 . . . 3 1 . . . . . . 1 . . . 2 . . . . . . . . 1 11 2 . . . Track 1 | . . . . . . . . . . . . . . . . . . . . . . . . . . . 1 . . . . Assimilate 3 | . . . . . . . . . . . . . . . . . . . . . . . . . . . 3 . . . . Botnet 16 | . 3 . . . 2 1 . . . . . . 1 . . . 2 . . . . . . . . 1 5 1 . . . Disrupt 1 | . . . . . . . . . . . . . . . . . . . . . . . . . . . 1 . . . . Operators 4 | . 1 . . . 1 . . . . . . . . . . . . . . . . . . . . . 1 1 . . . Fabricators 3 | . . . . . . 1 . . . . . . . . . . 1 . . . . 1 . . . . . . . . . Recompile 3 | . . . . . . 1 . . . . . . . . . . 1 . . . . 1 . . . . . . . . . Repair Stations . | . . . . . . . . . . . . . . . . . . . . . . . . . . . . . . . . Recycling Units 4 | . 2 . . . 1 . . . . . . . . . . . . . . . . 1 . . . . . . . . . Reject 2 | . . . . . 1 . . . . . . . . . . . . . . . . 1 . . . . . . . . . Tunnel 2 | . 2 . . . . . . . . . . . . . . . . . . . . . . . . . . . . . . Scanalyzers . | . . . . . . . . . . . . . . . . . . . . . . . . . . . . . . . . Garrison Access . | . . . . . . . . . . . . . . . . . . . . . . . . . . . . . . . . Data Cores Recovered 1 | . . . . . . . . . . . . . . . . . 1 . . . . . . . . . . . . . . Used . | . . . . . . . . . . . . . . . . . . . . . . . . . . . . . . . . Hacking Detections 84 | . 5 . . . 17 7 . . . . . 2 13 2 . . 11 . . . . 6 . . . 2 12 4 1 2 . Full Trace Events 8 | . 1 . . . 3 . . . . . . . 3 . . . . . . . . . . . . . . . . 1 . Feedback Events 1 | . . . . . . . . . . . . . 1 . . . . . . . . . . . . . . . . . . Corruption 1 | . . . . . . . . . . . . . 1 . . . . . . . . . . . . . . . . . . Feedback Blocked . | . . . . . . . . . . . . . . . . . . . . . . . . . . . . . . . . Robot Schematics Acquired 5 | . . . . . . . . . . . . . . . . . . . . . . . . . . . 1 2 . 2 . Robots Built . | . . . . . . . . . . . . . . . . . . . . . . . . . . . . . . . . Authchips . | . . . . . . . . . . . . . . . . . . . . . . . . . . . . . . . . Time . | . . . . . . . . . . . . . . . . . . . . . . . . . . . . . . . . Total Robot Build Rating . | . . . . . . . . . . . . . . . . . . . . . . . . . . . . . . . . Part Schematics Acquired 19 | . . . . . 2 1 . . . . . . . . . . . . . 4 . 1 . . . . 9 . . 2 . Parts Built 4 | . . . . . . . . . . . . . . . . . . . . . . 1 . . . . . . . 1 2 Authchips 2 | . . . . . . . . . . . . . . . . . . . . . . 1 . . . . . . . 1 . Time 245 | . . . . . . . . . . . . . . . . . . . . . . 102 . . . . . . . 74 69 Total Part Build Rating 35 | . . . . . . . . . . . . . . . . . . . . . . 8 . . . . . . . 9 18 Parts Repaired 23 | . 2 . . . 4 7 . . . . . . . . . . 3 . . . . 3 . . . . 2 . . 2 . Time 1584 | . 52 . . . 164 278 . . . . . . . . . . 198 . . . . 352 . . . . 216 . . 324 . Parts Recycled . | . . . . . . . . . . . . . . . . . . . . . . . . . . . . . . . . Recycled Matter . | . . . . . . . . . . . . . . . . . . . . . . . . . . . . . . . . Retrieved Matter . | . . . . . . . . . . . . . . . . . . . . . . . . . . . . . . . . Retrieved Components 32 | . . . . . 19 10 . . . . . . . . . . . . . . . 3 . . . . . . . . . Parts Scanalyzed 5 | . . . . . 2 . . . . . . . . . . . . . . . . 2 . . . . 1 . . . . Part Schematics Acquired 6 | . . . . . 2 . . . . . . . . . . . . . . . . 1 . . . . 3 . . . . Parts Damaged . | . . . . . . . . . . . . . . . . . . . . . . . . . . . . . . . . Bothacking | -11 -10 -10 -10 -9 -8 -7 -7 -7 -7 -7 -6 -6 -6 -6 -6 -6 -5 -5 -5 -5 -4 -4 -4 -4 -3 -3 -3 -3 -2 -2 -1 ------------ Run | Scr Mat Min Exi Min Mat Fac Low Low Zio Dee Pro Fac Ext Cet Arc Hub Fac Upp Upp Zhi Pro Fac Upp War Pro Res Qua Sec Res Tes Acc Used RIF Installer . | . . . . . . . . . . . . . . . . . . . . . . . . . . . . . . . . Robots Hacked . | . . . . . . . . . . . . . . . . . . . . . . . . . . . . . . . . Non-combat . | . . . . . . . . . . . . . . . . . . . . . . . . . . . . . . . . Combat . | . . . . . . . . . . . . . . . . . . . . . . . . . . . . . . . . Robot Hacks Applied . | . . . . . . . . . . . . . . . . . . . . . . . . . . . . . . . . Relay Couplers Released 9 | . . . . . . . . . . . . . . . . 3 . . . . . . . . . . 1 . . . 5 Machine Destruction 6 | . . . . . . . . . . . . . . . . 3 . . . . . . . . . . 1 . . . 2 Programmers 3 | . . . . . . . . . . . . . . . . . . . . . . . . . . . . . . . 3 Fabnet Peak Effective % . | . . . . . . . . . . . . . . . . . . . . . . . . . . . . . . . . Robots Rewired 22 | . . . . . . . 3 . . . . . 16 . . . . 1 . . . . . . 2 . . . . . . Allies Hacked . | . . . . . . . . . . . . . . . . . . . . . . . . . . . . . . . . Hacks Repelled . | . . . . . . . . . . . . . . . . . . . . . . . . . . . . . . . . Allies | -11 -10 -10 -10 -9 -8 -7 -7 -7 -7 -7 -6 -6 -6 -6 -6 -6 -5 -5 -5 -5 -4 -4 -4 -4 -3 -3 -3 -3 -2 -2 -1 -------- Run | Scr Mat Min Exi Min Mat Fac Low Low Zio Dee Pro Fac Ext Cet Arc Hub Fac Upp Upp Zhi Pro Fac Upp War Pro Res Qua Sec Res Tes Acc Total Allies 54 | . . . . 1 . . 3 . 4 1 . . 28 5 . . . 1 . . . . . . 2 . 1 . . . 8 Largest Group 17 | . . . . 1 1 . 3 3 7 8 2 . 17 13 6 3 . 1 1 . . . . . 2 . 1 . . . 8 Highest-Rated Group 684 | . . . . 31 31 . 93 93 329 448 62 . 589 684 549 288 . 29 29 . . . . . 89 . 26 . . . 114 Highest-Rated Ally 159 | . . . . 31 31 . 31 31 96 119 31 . 159 159 152 96 . 29 29 . . . . . 47 . 26 . . . 15 Total Orders 12 | . . . . . . . . . . 4 2 . . . 2 . . . . . . . . . . . 4 . . . . STAY 6 | . . . . . . . . . . 2 1 . . . 1 . . . . . . . . . . . 2 . . . . FOLLOW 6 | . . . . . . . . . . 2 1 . . . 1 . . . . . . . . . . . 2 . . . . Ally Attacks 557 | . . . . . 15 . 5 . . 153 4 . 165 81 22 32 . . 8 . . . . . 2 . . . . . 70 Total Damage 13579 | . . . . . 186 . 44 . . 3554 65 . 3531 2441 793 1405 . . 92 . . . . . 37 . . . . . 1431 Kills 91 | . . . . . 1 . . . . 22 1 . 36 11 3 8 . . 2 . . . . . . . . . . . 7 Allies Corrupted . | . . . . . . . . . . . . . . . . . . . . . . . . . . . . . . . . Allies Melted 2 | . . . . . . . . . . . . . 1 . . . . . . . . . . . . . . . 1 . . Intel | -11 -10 -10 -10 -9 -8 -7 -7 -7 -7 -7 -6 -6 -6 -6 -6 -6 -5 -5 -5 -5 -4 -4 -4 -4 -3 -3 -3 -3 -2 -2 -1 ------- Run | Scr Mat Min Exi Min Mat Fac Low Low Zio Dee Pro Fac Ext Cet Arc Hub Fac Upp Upp Zhi Pro Fac Upp War Pro Res Qua Sec Res Tes Acc Robot Analysis Total 8 | . 2 . . . . . . . . . . . 1 . . . . . . 4 . . . . . . 1 . . . . Derelict Logs Recovered 9 | . . 1 . . . . 2 1 1 . 1 . . . . . . 1 . . 2 . . . . . . . . . . Drone Launches . | . . . . . . . . . . . . . . . . . . . . . . . . . . . . . . . . Drone Recoveries . | . . . . . . . . . . . . . . . . . . . . . . . . . . . . . . . . Exploration | -11 -10 -10 -10 -9 -8 -7 -7 -7 -7 -7 -6 -6 -6 -6 -6 -6 -5 -5 -5 -5 -4 -4 -4 -4 -3 -3 -3 -3 -2 -2 -1 ------------- Run | Scr Mat Min Exi Min Mat Fac Low Low Zio Dee Pro Fac Ext Cet Arc Hub Fac Upp Upp Zhi Pro Fac Upp War Pro Res Qua Sec Res Tes Acc Turns Passed 56224 | 75 3110 1458 410 163 6215 4312 1133 504 2600 6886 1056 319 2795 476 2209 327 2498 865 668 685 1130 1960 255 1455 1724 406 3229 2132 303 1742 3124 Spaces Moved 21879 | 43 904 431 129 44 2112 1476 419 210 1064 3688 532 168 1066 149 532 101 912 407 358 171 654 660 84 642 604 170 1245 898 161 723 1122 Core 131 | 9 . . . . . . . . . . . . . . . . . . . . . . . . . . . . . . 122 Treads 17018 | 34 904 431 129 44 2112 1476 419 210 1064 1468 . . . 115 532 101 912 407 358 171 654 660 84 642 604 170 1245 898 161 723 290 Legs 3589 | . . . . . . . . . . 1079 532 168 1066 34 . . . . . . . . . . . . . . . . 710 Wheels . | . . . . . . . . . . . . . . . . . . . . . . . . . . . . . . . . Hover 1141 | . . . . . . . . . . 1141 . . . . . . . . . . . . . . . . . . . . . Flight . | . . . . . . . . . . . . . . . . . . . . . . . . . . . . . . . . Fastest Speed 50 | 50 160 320 320 320 235 235 235 235 238 52 189 189 189 189 160 240 160 160 160 160 160 160 160 160 240 160 160 147 146 146 50 Average Speed 199 | 141 302 320 320 320 244 235 235 237 238 159 189 189 228 289 200 240 185 160 160 160 160 161 160 172 240 160 160 155 146 153 165 Slowest Speed 560 | 160 320 320 320 320 320 392 235 238 397 250 189 189 242 320 320 240 240 160 160 160 160 240 160 240 240 160 160 160 147 237 560 Overloaded Moves . | . . . . . . . . . . . . . . . . . . . . . . . . . . . . . . . . Propulsion Burnouts . | . . . . . . . . . . . . . . . . . . . . . . . . . . . . . . . . Robots Hopped . | . . . . . . . . . . . . . . . . . . . . . . . . . . . . . . . . Cave-ins Triggered 2 | . . . . . . . . . . . . . . . . . 1 . . . . . . . . . . 1 . . . Teleports 1 | . . . . . . . . . . . . . . . . . . . . . . . . . . . . 1 . . . Exploration Rate (%) 53 | 5 99 88 48 16 99 32 46 32 86 93 65 6 96 69 92 21 20 60 54 60 87 16 22 75 68 8 93 56 7 63 37 Regions Visited 31 Branch Regions 22 Pre-discovered Areas 9 | . 2 1 1 . . . 1 . . . . . . . . . . . . 3 1 . . . . . . . . . . Known Exits Taken 18 | . . . . . . 1 1 1 1 1 1 1 . . . 1 1 1 . . . 1 1 1 1 1 1 1 1 . . Unknown Exits Taken 13 | 1 1 1 1 1 1 . . . . . . . 1 1 1 . . . 1 1 1 . . . . . . . . 1 . Scrap Searched 21 | . . 1 . . . . 2 2 5 . 1 . . . . . . 1 2 . 1 . 1 . 5 . . . . . . Spaces Dug 171 | . . . . . . 7 . . 3 1 10 . 8 . . . 28 . 2 . . 10 . 1 18 9 34 32 . 3 5 Terrain Destroyed 1767 | . . . . . 4 74 8 . 3 44 16 . 30 1 7 340 135 68 14 . 5 36 . 9 35 16 66 75 1 32 748 Melee 1 | . . . . . . . . . . 1 . . . . . . . . . . . . . . . . . . . . . Projectile 563 | . . . . . 4 43 8 . 3 2 16 . 30 1 7 12 73 2 14 . 5 36 . 9 35 16 62 62 1 21 101 AOE 1157 | . . . . . . 31 . . . 41 . . . . . 328 62 66 . . . . . . . . 4 13 . 11 601 Terrain Rammed . | . . . . . . . . . . . . . . . . . . . . . . . . . . . . . . . . Walls Destroyed . | . . . . . . . . . . . . . . . . . . . . . . . . . . . . . . . . Machines Disabled . | . . . . . . . . . . . . . . . . . . . . . . . . . . . . . . . . Actions | -11 -10 -10 -10 -9 -8 -7 -7 -7 -7 -7 -6 -6 -6 -6 -6 -6 -5 -5 -5 -5 -4 -4 -4 -4 -3 -3 -3 -3 -2 -2 -1 --------- Run | Scr Mat Min Exi Min Mat Fac Low Low Zio Dee Pro Fac Ext Cet Arc Hub Fac Upp Upp Zhi Pro Fac Upp War Pro Res Qua Sec Res Tes Acc Total 31487 | 55 1159 473 128 55 2784 2154 537 218 1110 4541 558 170 1311 182 1594 140 1545 606 412 597 725 1403 205 890 776 268 2234 1356 225 1175 1901 Wait 6052 | . 148 5 . . 282 499 52 6 14 556 9 . 31 8 869 15 407 163 18 364 59 597 117 154 66 67 678 218 44 284 322 Move 21845 | 42 903 430 128 43 2111 1475 418 209 1063 3687 531 167 1065 148 531 100 910 406 357 170 653 659 83 641 603 169 1244 896 160 722 1121 Hop . | . . . . . . . . . . . . . . . . . . . . . . . . . . . . . . . . Pick Up 349 | 7 23 1 . 1 43 16 . 1 3 68 1 1 2 3 46 . 31 2 3 22 2 14 . 6 1 1 15 10 3 9 14 Fast Attach 244 | 5 6 . . . 20 14 5 . 4 37 . . 1 3 10 . 9 1 2 4 . 4 2 10 3 2 28 16 4 16 38 Attach 103 | 1 2 1 . . 18 5 . 1 1 12 . 1 1 1 5 . 5 . 1 2 . 5 . 2 . 1 5 4 2 4 23 Detach 36 | . 3 . . . 3 1 . . 2 6 . . . . . . 5 2 . . . 1 . . . . 4 1 . 3 5 Swap 194 | . 5 6 . 3 15 14 4 . 1 8 3 . 1 . . 2 15 3 . 1 1 9 . 1 11 7 37 24 . 8 15 Drop 564 | . 7 1 . 2 49 22 3 1 7 78 2 1 5 10 67 . 43 7 8 34 3 21 3 21 7 3 59 27 9 25 39 Fire 1775 | . 57 27 . 6 199 107 19 . 15 46 12 . 65 9 66 23 117 15 22 . 7 92 . 55 62 18 158 158 3 99 318 Melee 47 | . . . . . . . . . . 42 . . . . . . . . . . . . . . . . 5 . . . . Ram . | . . . . . . . . . . . . . . . . . . . . . . . . . . . . . . . . Kick 4 | . . . . . . . . . . . . . . . . . . . . . . . . . . . . . . . 4 Crush 36 | . 5 2 . . 15 1 . . . . . . . . . . 2 . 1 . . 1 . . . . 1 1 . 5 2 Escape Stasis 17 | . . . . . . . . . . . . . 15 . . . 1 . . . . . . . . . . 1 . . . Rewire 192 | . . . . . . . 36 . . 1 . . 125 . . . . 7 . . . . . . 23 . . . . . . Trap 29 | . . . . . 29 . . . . . . . . . . . . . . . . . . . . . . . . . . Miscellaneous . | . . . . . . . . . . . . . . . . . . . . . . . . . . . . . . . . Route ------- -11/Scrapyard -10/Materials (discovered 5 exits: [*Mat x3] / [*Min x2]) -10/Mines (discovered 3 exits: [*Mat x2] / *Exi) -10/Exiles (discovered 2 exits: *Min x2) -9/Mines -8/Materials (discovered 3 exits: *Fac x3) -7/Factory (discovered 3 exits: *Fac / *Low x2) -7/Lower Caves -7/Lower Caves -7/Zion (discovered 2 exits: *Dee / *Pro) -7/Deep Caves -6/Proximity Caves -6/Factory (discovered 3 exits: Fac / Low / *Ext) -6/Extension (discovered 2 exits: *Fac / *Cet) -6/Cetus (discovered 2 exits: *Fac / [*Arc]) -6/Archives (discovered 3 exits: *Fac / [*Hub x2]) -6/Hub_04(d) -5/Factory (discovered 2 exits: *Upp x2) -5/Upper Caves -5/Upper Caves (discovered 2 exits: *Fac / *Zhi) -5/Zhirov -4/Proximity Caves -4/Factory -4/Upper Caves -4/Warlord -3/Proximity Caves -3/Research -3/Quarantine (discovered 2 exits: *Res / *Sec) -3/Section 7 -2/Research (discovered 2 exits: *Tes x2) -2/Testing -1/Access To Fleet Rendezvous History --------- Turn | Location | Event 18 | -11/Scrapyard | Discovered new exit (range 15) 76 | -11/Scrapyard | Entered Materials 314 | -10/Materials | Build established: Mutant 615 | -10/Materials | Discovered new exit (range 9) 1349 | -10/Materials | Discovered new exit (range 16) 1565 | -10/Materials | Central database locked down 1946 | -10/Materials | Discovered new exit (range 11) 2545 | -10/Materials | Discovered new exit (range 9) 2808 | -10/Materials | Repaired Lgt. Armor Plating 2853 | -10/Materials | Repaired Lgt. Treads 3013 | -10/Materials | Discovered new exit (range 16) 3186 | -10/Materials | Entered Mines 3805 | -10/Mines | Found a damaged Exp. Sensor Array with a note attached 3813 | -10/Mines | Found Prototype Device 3827 | -10/Mines | Discovered new exit (range 5) 3977 | -10/Mines | Core integrity fell below 50% 4432 | -10/Mines | Learned Materials emergency access door positions 4571 | -10/Mines | Discovered new exit (range 13) 4632 | -10/Mines | Deemed a non-threat by the Exiles lab entrance 4632 | -10/Mines | Discovered new exit (range 5) 4644 | -10/Mines | Entered Exiles 4696 | -10/Exiles | Discovered new exit (range 15) 4731 | -10/Exiles | Met 8R-AWN 4776 | -10/Exiles | Met EX-HEX 4900 | -10/Exiles | Met EX-DEC 4920 | -10/Exiles | Learned location of Zion (-7) 5028 | -10/Exiles | Discovered new exit (range 10) 5054 | -10/Exiles | Entered Mines 5078 | -9/Mines | Found the Drone Emporium 5091 | -9/Mines | Found Prototype Device 5194 | -9/Mines | Discovered new exit (range 8) 5195 | -9/Mines | Escorted by a lone wolf Derelict 5217 | -9/Mines | Entered Materials 5217 | -8/Materials | Accompanied by 1 ally 5217 | -8/Materials | Evolved 4 slots: Propulsion x1, Utility x3 5332 | -8/Materials | Identified Bomb Drone Bay 5607 | -8/Materials | Build established: Scavenger-Mutant 5674 | -8/Materials | Garrison activated, responded to threat 6539 | -8/Materials | Discovered new exit (range 15) 6613 | -8/Materials | Identified Exp. Sensor Array 7473 | -8/Materials | Discovered new exit (range 8) 8631 | -8/Materials | Repaired Hvy. Armor Plating 8810 | -8/Materials | Core integrity fell below 50% 8817 | -8/Materials | Lost 3 parts (1n1u1w) 8899 | -8/Materials | Lost 3 parts (3n) 9569 | -8/Materials | Repaired Hrd. Heavy Armor Plating 10074 | -8/Materials | Discovered new exit (range 15) 11323 | -8/Materials | Repaired Arm. Treads 11368 | -8/Materials | Repaired Rnf. Deuterium Engine 11432 | -8/Materials | Entered Factory 11432 | -7/Factory | Evolved 2 slots: Utility x2 12053 | -7/Factory | Identified exit to Lower Caves 12738 | -7/Factory | Repaired Hrd. Heavy Armor Plating 12777 | -7/Factory | Repaired Hvy. Assault Cannon 12842 | -7/Factory | Repaired Adv. Treads 12897 | -7/Factory | Repaired Imp. Treads 12948 | -7/Factory | Repaired Hvy. Assault Cannon 12993 | -7/Factory | Repaired Imp. Medium Armor Plating 13839 | -7/Factory | Discovered new exit (range 13) 14007 | -7/Factory | Identified exit to Factory 15241 | -7/Factory | Repaired Hrd. Heavy Armor Plating 15744 | -7/Factory | Entered Lower Caves 16101 | -7/Lower Caves | Attacked by a delusional Derelict stockpiling Unaware 16679 | -7/Lower Caves | Learned Factory garrison access intel 16679 | -7/Lower Caves | Learned Factory terminal intel 16679 | -7/Lower Caves | Learned Extension security intel 16679 | -7/Lower Caves | Learned Factory stockpile data 16679 | -7/Lower Caves | Learned Research trap positions 16730 | -7/Lower Caves | Encountered a Warlord checkpoint 16731 | -7/Lower Caves | Discovered new exit (range 7) 16743 | -7/Lower Caves | Identified exit to Lower Caves 16877 | -7/Lower Caves | Entered another Lower Caves area 16877 | -7/Lower Caves | Accompanied by 3 allies 16939 | -7/Lower Caves | Learned Factory trap positions 17027 | -7/Lower Caves | Encountered a Warlord checkpoint 17183 | -7/Lower Caves | Discovered new exit (range 10) 17204 | -7/Lower Caves | Identified exit to Zion 17381 | -7/Lower Caves | Entered Zion 17381 | -7/Zion | Accompanied by 3 allies 17536 | -7/Zion | Discovered new exit (range 15) 17646 | -7/Zion | Identified exit to Proximity Caves 17965 | -7/Zion | Given A8's code to call for help 18073 | -7/Zion | Found Prototype Special Weapon 18073 | -7/Zion | Identified RU-N14's Throwing Claymores 18081 | -7/Zion | Found RU-N14's Throwing Claymores 18119 | -7/Zion | Found RU-N14's Throwing Claymores 18132 | -7/Zion | Found RU-N14's Throwing Claymores 18411 | -7/Zion | Learned location of 1 exit from Factory 18601 | -7/Zion | Learned Factory scanalyzer intel 18979 | -7/Zion | Discovered new exit (range 4) 19072 | -7/Zion | Gained Derelict followers 19940 | -7/Zion | Enhanced Grunt warped into view, answering call for help 19943 | -7/Zion | Enhanced Grunt warped into view, answering call for help 19961 | -7/Zion | Saw the warning signs outside the Deep Caves entrance 19963 | -7/Zion | Identified exit to Deep Caves 19981 | -7/Zion | Entered Deep Caves 19981 | -7/Deep Caves | Accompanied by 7 allies 19984 | -7/Deep Caves | Met 5H-AD0 20340 | -7/Deep Caves | Z-Facility disabled 20346 | -7/Deep Caves | Attacked by Z-Imprinter 20357 | -7/Deep Caves | Allies destroyed Z-Imprinter 20393 | -7/Deep Caves | Found Prototype Protection 20393 | -7/Deep Caves | Identified Zio. Weapon Casing 21387 | -7/Deep Caves | Discovered new exit (range 7) 21942 | -7/Deep Caves | Found Prototype Protection 21942 | -7/Deep Caves | Identified Zio. Heavy Carapace 22370 | -7/Deep Caves | Spotted as-66497 22402 | -7/Deep Caves | Destroyed as-66497 22408 | -7/Deep Caves | Found Corrupted GOLEM Unit 22685 | -7/Deep Caves | Build established: Mutant 23789 | -7/Deep Caves | Triggered Deep Caves wall 23789 | -7/Deep Caves | Spotted AS-38161 23789 | -7/Deep Caves | Spotted AS-35462 23834 | -7/Deep Caves | Destroyed AS-35462 23838 | -7/Deep Caves | Lost 3 parts (1n2u) 23839 | -7/Deep Caves | Destroyed AS-38161 23860 | -7/Deep Caves | Destroyed 37 combat bots 23940 | -7/Deep Caves | Found Prototype Device 23940 | -7/Deep Caves | Identified Exp. Thermal Shield 23970 | -7/Deep Caves | Build established: Scavenger-Mutant 24310 | -7/Deep Caves | Exposed GOLEM chamber 24314 | -7/Deep Caves | Found GOLEM Unit 24354 | -7/Deep Caves | Spotted as-14425 24388 | -7/Deep Caves | Destroyed as-14425 24392 | -7/Deep Caves | Found Corrupted GOLEM Unit 24403 | -7/Deep Caves | Found Prototype Processor 24415 | -7/Deep Caves | Lost 4 parts (1p2n1u) 24496 | -7/Deep Caves | Found GOLEM Unit 24746 | -7/Deep Caves | Build established: Mutant 24875 | -7/Deep Caves | Found GOLEM Unit 25149 | -7/Deep Caves | Found GOLEM Unit 25458 | -7/Deep Caves | Found Prototype Protection 25458 | -7/Deep Caves | Identified Zio. Weapon Casing 25924 | -7/Deep Caves | Found Exp. Thermal Shield 26756 | -7/Deep Caves | Identified exit to Proximity Caves 26867 | -7/Deep Caves | Entered Proximity Caves 26867 | -6/Proximity Caves | Accompanied by 2 allies 27059 | -6/Proximity Caves | Build established: Golem 27195 | -6/Proximity Caves | Learned location of 1 exit from Factory 27469 | -6/Proximity Caves | Discovered exit to Factory (range 9) 27923 | -6/Proximity Caves | Entered Factory 27923 | -6/Factory | Evolved 2 slots: Power x1, Utility x1 27924 | -6/Factory | Identified exit to Factory 27924 | -6/Factory | Identified exit to Lower Caves 27925 | -6/Factory | Loaded intel: 87 trap records 27927 | -6/Factory | Loaded intel: 27 terminal locations 27928 | -6/Factory | Loaded intel: 4 scanalyzer locations 27929 | -6/Factory | Loaded intel: 4 garrison access locations 28234 | -6/Factory | Discovered new exit (range 6) 28240 | -6/Factory | Identified exit to Extension 28242 | -6/Factory | Entered Extension 28327 | -6/Extension | Rescued a captive Derelict 28506 | -6/Extension | Rescued a captive Derelict 29087 | -6/Extension | Build established: Commander-Golem 29334 | -6/Extension | Spotted B-75 Beast 29346 | -6/Extension | Allies destroyed B-75 Beast 29369 | -6/Extension | Spotted B-75 Beast 29381 | -6/Extension | Allies destroyed B-75 Beast 29456 | -6/Extension | Rescued A7 29532 | -6/Extension | Rescued a captive Derelict 29549 | -6/Extension | Rescued a captive Derelict 29729 | -6/Extension | Rescued a captive Derelict 29730 | -6/Extension | Rescued a captive Derelict 29764 | -6/Extension | Rescued a captive Derelict 29793 | -6/Extension | Rescued a captive Derelict 29795 | -6/Extension | Rescued a captive Derelict 29942 | -6/Extension | Rescued a captive Derelict 29944 | -6/Extension | Rescued a captive Derelict 30050 | -6/Extension | Discovered exit to Factory (range 10) 30053 | -6/Extension | Discovered new exit (range 6) 30078 | -6/Extension | Disrupted transfer network 30692 | -6/Extension | First assault squad dispatched 31037 | -6/Extension | Entered Cetus 31037 | -6/Cetus | Accompanied by 13 allies (A7) 31042 | -6/Cetus | Acquired a Cetus Manufacturing Module code from A7 31066 | -6/Cetus | Spotted Cetus Guard 31067 | -6/Cetus | Spotted Cetus Guard 31067 | -6/Cetus | Spotted Cetus Guard 31068 | -6/Cetus | Spotted Cetus Guard 31077 | -6/Cetus | Allies destroyed Cetus Guard 31089 | -6/Cetus | Allies destroyed Cetus Guard 31089 | -6/Cetus | Destroyed Cetus Guard 31090 | -6/Cetus | Allies destroyed Cetus Guard 31237 | -6/Cetus | Started Cetus Manufacturing Module 31259 | -6/Cetus | Escorted A7 to Cetus Mainframe 31262 | -6/Cetus | Manufactured an Enhanced Grunt 31287 | -6/Cetus | Manufactured an Enhanced Grunt 31296 | -6/Cetus | Discovered new exit (range 16) 31312 | -6/Cetus | Manufactured an Enhanced Grunt 31337 | -6/Cetus | Manufactured an Enhanced Grunt 31360 | -6/Cetus | Spotted Cetus Guard 31360 | -6/Cetus | Spotted Cetus Guard 31362 | -6/Cetus | Manufactured an Enhanced Grunt 31367 | -6/Cetus | Spotted Cetus Guard 31368 | -6/Cetus | Spotted Cetus Guard 31370 | -6/Cetus | Destroyed Cetus Guard 31380 | -6/Cetus | Allies destroyed Cetus Guard 31385 | -6/Cetus | Allies destroyed Cetus Guard 31402 | -6/Cetus | Discovered exit to Factory (range 15) 31416 | -6/Cetus | Met Revision 17 31513 | -6/Cetus | Entered Archives 31513 | -6/Archives | Accompanied by 6 allies (A7) 31518 | -6/Archives | Received a hacking code to weaken MAIN.C 31665 | -6/Archives | Discovered new exit (range 14) 31748 | -6/Archives | Discovered exit to Factory (range 15) 32347 | -6/Archives | Discovered new exit (range 15) 32635 | -6/Archives | Found Exp. Thermal Shield 32656 | -6/Archives | Build established: Scavenger-Mutant 33101 | -6/Archives | Build established: Golem 33547 | -6/Archives | Build established: Mutant 33722 | -6/Archives | Entered Hub_04(d) 33722 | -6/Hub_04(d) | Accompanied by 3 allies 33790 | -6/Hub_04(d) | Garrison activated, responded to threat 33978 | -6/Hub_04(d) | Destroyed 7 combat bots 34029 | -6/Hub_04(d) | Discovered exit to Factory (range 4) 34043 | -6/Hub_04(d) | Network Hub disabled 34047 | -6/Hub_04(d) | Network Hub disabled 34049 | -6/Hub_04(d) | Spotted Lightning 34049 | -6/Hub_04(d) | Entered Factory 34049 | -5/Factory | Evolved 2 slots: Propulsion x1, Utility x1 34050 | -5/Factory | Identified exit to Upper Caves 34538 | -5/Factory | Repaired Exp. Sensor Array 34603 | -5/Factory | Repaired Centrium Medium Armor Plating 34649 | -5/Factory | First assault squad dispatched 34767 | -5/Factory | Identified 0b10 Alert Chip 35262 | -5/Factory | Cargo convoy interrupted 35306 | -5/Factory | Found Prototype Device 35306 | -5/Factory | Identified Exp. Transmission Jammer 35314 | -5/Factory | Destroyed 12 combat bots 35323 | -5/Factory | Found Prototype Device 35324 | -5/Factory | Identified Exp. Phase Shifter 35336 | -5/Factory | Found Exp. Transmission Jammer 35364 | -5/Factory | Build established: Golem 35915 | -5/Factory | Repaired Centrium Heavy Treads? 36356 | -5/Factory | Destroyed 8 combat bots 36398 | -5/Factory | Crushed by falling debris 36547 | -5/Factory | Entered Upper Caves 36780 | -5/Upper Caves | Attracted the attention of an 0b10 outpost 36949 | -5/Upper Caves | Identified exit to Upper Caves 37412 | -5/Upper Caves | Entered another Upper Caves area 37412 | -5/Upper Caves | Accompanied by 1 ally 37441 | -5/Upper Caves | Discovered new exit (range 6) 37774 | -5/Upper Caves | Spotted B-75 Beast 37829 | -5/Upper Caves | Destroyed B-75 Beast 38036 | -5/Upper Caves | Discovered new exit (range 3) 38080 | -5/Upper Caves | Entered Zhirov 38081 | -5/Zhirov | Discovered new exit (range 3) 38112 | -5/Zhirov | Met Zhirov 38145 | -5/Zhirov | Learned location of Quarantine (-3) 38145 | -5/Zhirov | Learned location of Testing (-2) 38145 | -5/Zhirov | Learned location of Command (-1) 38155 | -5/Zhirov | Zhirov requested help retrieving the SGEMP Prototype 38180 | -5/Zhirov | Found Alien Artifact 38180 | -5/Zhirov | Identified Integrated Reactor 38180 | -5/Zhirov | Installed Integrated Reactor, increased core energy generation (+10) 38253 | -5/Zhirov | Found Alien Artifact 38765 | -5/Zhirov | Entered Proximity Caves 38805 | -4/Proximity Caves | Learned Research garrison access intel 38858 | -4/Proximity Caves | Attracted the attention of an 0b10 checkpoint 39344 | -4/Proximity Caves | Spotted B-86 Titan 39422 | -4/Proximity Caves | Destroyed B-86 Titan 39447 | -4/Proximity Caves | Discovered new exit (range 5) 39895 | -4/Proximity Caves | Entered Factory 39895 | -4/Factory | Evolved 2 slots: Utility x2 39994 | -4/Factory | Discovered new exit (range 16) 40227 | -4/Factory | Build established: Mutant 40424 | -4/Factory | Destroyed 7 combat bots 40543 | -4/Factory | Found Prototype Processor 40546 | -4/Factory | Identified Exp. Signal Interpreter 40665 | -4/Factory | Repaired Centrium Medium Armor Plating? 40785 | -4/Factory | Repaired Centrium Heavy Treads 40934 | -4/Factory | Repaired Broken Centrium Heavy Treads 41073 | -4/Factory | Identified Transdimensional Reconstructor 41253 | -4/Factory | Fabricated Exp. Sensor Array? 41853 | -4/Factory | Identified exit to Upper Caves 41855 | -4/Factory | Entered Upper Caves 42009 | -4/Upper Caves | Build established: Golem 42027 | -4/Upper Caves | Encountered a Warlord checkpoint 42102 | -4/Upper Caves | A Derelict revealed a hidden shortcut to "reach the base" 42107 | -4/Upper Caves | Identified exit to Warlord 42110 | -4/Upper Caves | Entered Warlord 42164 | -4/Warlord | System corruption cleaned by Quarantine Array 42214 | -4/Warlord | Received a Watcher feed algorithm from an ecstatic Tinkerer 42398 | -4/Warlord | Build established: Mutant 42517 | -4/Warlord | Learned Factory recycling unit intel 42517 | -4/Warlord | Learned Research garrison access intel 42518 | -4/Warlord | Learned 4 Armory zone layouts 42518 | -4/Warlord | Learned Quarantine trap positions 42717 | -4/Warlord | Warlord's base attacked by MAIN.C 42719 | -4/Warlord | Build established: Golem 42738 | -4/Warlord | Found Prototype Energy Cannon 42738 | -4/Warlord | Identified Vortex Cannon 42743 | -4/Warlord | Found Vortex Cannon 42825 | -4/Warlord | Met Warlord 42857 | -4/Warlord | Found Prototype Processor 42857 | -4/Warlord | Identified Spectral Analyzer 42862 | -4/Warlord | Found Prototype Device 42862 | -4/Warlord | Identified Thermal Barrier 42885 | -4/Warlord | Found Prototype Reactor 42885 | -4/Warlord | Identified Vortex Chain Reactor 43067 | -4/Warlord | Warlord forces counterattacked 43136 | -4/Warlord | P-70 Sage assimilated allied ZD-2AR(l) 43140 | -4/Warlord | Build established: Mutant 43155 | -4/Warlord | Spotted Striker 43161 | -4/Warlord | Destroyed Striker 43200 | -4/Warlord | Destroyed 12 combat bots 43299 | -4/Warlord | Spotted Striker 43300 | -4/Warlord | Destroyed Striker 43359 | -4/Warlord | Destroyed 8 combat bots 43361 | -4/Warlord | Spotted Striker 43392 | -4/Warlord | Warlord base infiltrated, sounded retreat 43536 | -4/Warlord | Discovered new exit (range 14) 43562 | -4/Warlord | Identified exit to Proximity Caves 43565 | -4/Warlord | Entered Proximity Caves 43673 | -3/Proximity Caves | Build established: Golem 44047 | -3/Proximity Caves | Attracted the attention of an 0b10 outpost 45123 | -3/Proximity Caves | Build established: Skirmisher 45188 | -3/Proximity Caves | Discovered new exit (range 7) 45200 | -3/Proximity Caves | Identified exit to Research 45263 | -3/Proximity Caves | Spotted B-86 Titan 45289 | -3/Proximity Caves | Entered Research 45289 | -3/Research | Evolved 2 slots: Propulsion x2 45290 | -3/Research | Loaded intel: 108 trap records 45291 | -3/Research | Loaded intel: 4 garrison access locations 45489 | -3/Research | Revision forces began assault on 0b10 45570 | -3/Research | Met up with Revision 17++ 45684 | -3/Research | Spotted B-90 Cyclops 45685 | -3/Research | Discovered new exit (range 7) 45692 | -3/Research | Identified exit to Quarantine 45695 | -3/Research | Entered Quarantine 45696 | -3/Quarantine | Loaded intel: 13 trap records 45830 | -3/Quarantine | Spotted Alpha 7 45844 | -3/Quarantine | Found Alien Launcher 45889 | -3/Quarantine | Found Alien Artifact 46143 | -3/Quarantine | Found Alien Artifact 46143 | -3/Quarantine | Identified Core Reset Matrix 46143 | -3/Quarantine | Identified Subatomic Replicator 46143 | -3/Quarantine | Identified Sigix Terminator 46143 | -3/Quarantine | Used Core Reset Matrix 46147 | -3/Quarantine | Detected hypermatrix surge 46147 | -3/Quarantine | Sensed 11 artifacts in vicinity 46586 | -3/Quarantine | Discovered new exit (range 5) 46593 | -3/Quarantine | Identified exit to Research 46617 | -3/Quarantine | Found Dimensional Node Initializer 46617 | -3/Quarantine | Initialized slip node 46623 | -3/Quarantine | Found Dimensional Node Initializer 46652 | -3/Quarantine | Found Transdimensional Reconstructor 47032 | -3/Quarantine | Build established: Mutant 47161 | -3/Quarantine | Found Prototype Launcher 47178 | -3/Quarantine | Identified Com. Tesla Bomb Launcher 47258 | -3/Quarantine | Found Core Stripper 47501 | -3/Quarantine | Repaired Centrium Medium Armor Plating? 47620 | -3/Quarantine | Repaired Centrium Heavy Treads 47794 | -3/Quarantine | Cryocooling Duct disabled 47809 | -3/Quarantine | Ambient heat levels rising (+20) 47809 | -3/Quarantine | Non-combat units ordered to evacuate 48369 | -3/Quarantine | Build established: Scavenger-Mutant 48490 | -3/Quarantine | Spotted Fortress 48522 | -3/Quarantine | Destroyed Fortress 48536 | -3/Quarantine | Found Vortex Chain Reactor 48579 | -3/Quarantine | Found Prototype Device 48579 | -3/Quarantine | Identified Thermal Barrier 48584 | -3/Quarantine | Found Prototype Device 48584 | -3/Quarantine | Identified Exp. Force Field 48666 | -3/Quarantine | System corruption reached 10% 48918 | -3/Quarantine | Discovered new exit (range 5) 48923 | -3/Quarantine | Identified exit to Section 7 48924 | -3/Quarantine | Entered Section 7 48925 | -3/Section 7 | Sensed 23 artifacts in vicinity 48945 | -3/Section 7 | Found Integrated Reactor 48945 | -3/Section 7 | Installed Integrated Reactor, increased core energy generation (+10) 49177 | -3/Section 7 | Spotted S7 Guard 49182 | -3/Section 7 | Spotted S7 Guard 49210 | -3/Section 7 | Destroyed S7 Guard 49224 | -3/Section 7 | Destroyed S7 Guard 49275 | -3/Section 7 | Found Spacefold Activator 49301 | -3/Section 7 | Found Core Physics Calibrator 49498 | -3/Section 7 | Destroyed 8 combat bots 49588 | -3/Section 7 | Build established: Alien-Mutant 49625 | -3/Section 7 | Spotted B-86 Titan 49720 | -3/Section 7 | Found Sigix Shearcannon 50007 | -3/Section 7 | Spotted S7 Guard 50010 | -3/Section 7 | Destroyed 7 combat bots 50019 | -3/Section 7 | Spotted Alpha 7 50064 | -3/Section 7 | Found Integrated Thermoelectric Network 50064 | -3/Section 7 | Installed Integrated Thermoelectric Network, gained heat-energy exchange potential 50100 | -3/Section 7 | Destroyed S7 Guard 50172 | -3/Section 7 | Spotted Alpha 7 50286 | -3/Section 7 | Discovered exit to Research (range 11) 50303 | -3/Section 7 | Initialized slip node 50463 | -3/Section 7 | Crushed by falling debris 50509 | -3/Section 7 | Spotted Executioner 50509 | -3/Section 7 | Spotted Executioner 50536 | -3/Section 7 | Destroyed Executioner 50551 | -3/Section 7 | Scanned by Researcher 50602 | -3/Section 7 | Intercept squad dispatched 50613 | -3/Section 7 | Spotted Tracker 50614 | -3/Section 7 | Spotted Tracker 50617 | -3/Section 7 | Destroyed Tracker 50629 | -3/Section 7 | Destroyed Tracker 50640 | -3/Section 7 | Spotted Combat Programmer 50641 | -3/Section 7 | Spotted Combat Programmer 50649 | -3/Section 7 | Destroyed Combat Programmer 50656 | -3/Section 7 | Destroyed Combat Programmer 50677 | -3/Section 7 | Destroyed 7 combat bots 50732 | -3/Section 7 | Destroyed Executioner 50780 | -3/Section 7 | Found Prototype Processor 50820 | -3/Section 7 | Found Transdimensional Reconstructor 50877 | -3/Section 7 | Spotted B-99 Colossus 50924 | -3/Section 7 | First assault squad dispatched 50950 | -3/Section 7 | Found Integrated Reactor 50950 | -3/Section 7 | Installed Integrated Reactor, increased core energy generation (+10) 50997 | -3/Section 7 | Found LRC Matter Compressor 50997 | -3/Section 7 | Installed LRC Matter Compressor, increased matter storage capacity (+125) 51006 | -3/Section 7 | Found LRC Storage 51006 | -3/Section 7 | Installed LRC Storage, increased inventory capacity (+2) 51028 | -3/Section 7 | Warped through subspace to slip node 51056 | -3/Section 7 | Entered Research 51056 | -2/Research | Warlord forces began assault on 0b10 51056 | -2/Research | Evolved 2 slots: Power x1, Utility x1 51119 | -2/Research | Identified exit to Testing 51166 | -2/Research | Research machine network offline 51296 | -2/Research | Met up with Warlord 51327 | -2/Research | Spotted B-90 Cyclops 51359 | -2/Research | Entered Testing 51520 | -2/Testing | Build established: Generator-Mutant 51701 | -2/Testing | Found Prototype Ballistic Cannon 51701 | -2/Testing | Identified Omega Cannon 51775 | -2/Testing | Found Prototype Energy Cannon 51775 | -2/Testing | Identified Disintegrator 51972 | -2/Testing | Fabricated Exp. Transmission Jammer (x1) 52016 | -2/Testing | Intercept squad dispatched 52024 | -2/Testing | Spotted Tracker 52024 | -2/Testing | Spotted Tracker 52029 | -2/Testing | Destroyed Tracker 52035 | -2/Testing | Destroyed Tracker 52043 | -2/Testing | Spotted Combat Programmer 52044 | -2/Testing | Spotted Combat Programmer 52050 | -2/Testing | Destroyed Combat Programmer 52056 | -2/Testing | Destroyed Combat Programmer 52124 | -2/Testing | Build established: Generator-Golem 52192 | -2/Testing | Repaired Centrium Medium Armor Plating? 52227 | -2/Testing | Identified Exp. Core Analyzer 52318 | -2/Testing | Repaired Centrium Medium Armor Plating? 52661 | -2/Testing | Found Prototype Energy Cannon 52692 | -2/Testing | Found Prototype Hackware 52740 | -2/Testing | Found Prototype Energy Cannon 52740 | -2/Testing | Identified Cld. Nova Cannon 52742 | -2/Testing | Identified Null Cannon 52855 | -2/Testing | Build established: Generator-Mutant 52904 | -2/Testing | First assault squad dispatched 52949 | -2/Testing | System corruption reached 10% 53010 | -2/Testing | Discovered new exit (range 14) 53019 | -2/Testing | Spotted PH-OHB7L9DNL2 53101 | -2/Testing | Entered Access 53101 | -1/Access | Evolved 2 slots: Weapon x2 53186 | -1/Access | Fabricated Adv. Heavy Siege Treads (x2) 53400 | -1/Access | Identified Ghost Barrier 53816 | -1/Access | System corruption reached 10% 53857 | -1/Access | Lost 7 parts (1p1n5u) 54032 | -1/Access | Lost 5 parts (1p3u1w) 54100 | -1/Access | Lost 5 parts (1p2n2w) 54118 | -1/Access | Destroyed 11 combat bots 54162 | -1/Access | Lost 4 parts (1p2n1u) 54209 | -1/Access | Used Subatomic Replicator to replicate Sigix Shearcannon 54225 | -1/Access | Destroyed 8 combat bots 54255 | -1/Access | Build established: Alien-Mutant 54272 | -1/Access | Found Faulty Vortex Chain Reactor 54278 | -1/Access | Found Vortex Chain Reactor 54284 | -1/Access | Intercept squad dispatched 54286 | -1/Access | Found Vortex Chain Reactor 54301 | -1/Access | Found Vortex Chain Reactor 54306 | -1/Access | Spotted Tracker 54306 | -1/Access | Spotted Tracker 54307 | -1/Access | Destroyed Tracker 54310 | -1/Access | Destroyed Tracker 54342 | -1/Access | Spotted Combat Programmer 54346 | -1/Access | Destroyed Combat Programmer 54356 | -1/Access | Spotted Combat Programmer 54359 | -1/Access | Destroyed Combat Programmer 54601 | -1/Access | First assault squad dispatched 54759 | -1/Access | Build established: Alien-Tank 54852 | -1/Access | Garrison activated, responded to threat 55085 | -1/Access | Core integrity fell below 50% 55577 | -1/Access | Spotted B-99 Colossus 55593 | -1/Access | Destroyed B-99 Colossus 55642 | -1/Access | Lost 7 parts (1p1n3u2w) 55662 | -1/Access | High security lockdown imminent 55704 | -1/Access | Intercept squad dispatched 55725 | -1/Access | Spotted Tracker 55726 | -1/Access | Spotted Tracker 55726 | -1/Access | Destroyed Tracker 55739 | -1/Access | Destroyed Tracker 55742 | -1/Access | High security lockdown engaged 55776 | -1/Access | Spotted Combat Programmer 55781 | -1/Access | Destroyed Combat Programmer 55787 | -1/Access | Spotted Combat Programmer 55793 | -1/Access | Destroyed Combat Programmer 55808 | -1/Access | Garrison activated, responded to threat 55907 | -1/Access | Sterilization system engaged 55939 | -1/Access | Lost 12 parts (1p3n6u2w) 55960 | -1/Access | Destroyed 23 combat bots 55996 | -1/Access | Spotted Executioner 56000 | -1/Access | Destroyed Executioner 56009 | -1/Access | Emitted hypermatrix ping 56014 | -1/Access | Assembled emerged from beneath the floor 56045 | -1/Access | Lost 5 parts (1p2n2u) 56060 | -1/Access | Destroyed 13 combat bots 56149 | -1/Access | Spotted Investigator 56154 | -1/Access | Fired Sigix Terminator 56154 | -1/Access | Destroyed Investigator 56155 | -1/Access | Core integrity fell below 20% 56156 | -1/Access | Released all parts (14) 56175 | -1/Access | Destroyed 7 combat bots 56185 | -1/Access | Lost 6 parts (2n2u2w) 56207 | -1/Access | Ambient heat levels rising (+10) 56218 | -1/Access | Discovered new exit (range 4) 56225 | *** | Heading to fleet! Last Messages --------------- 56162_ The unstable cave ceiling collapses. Unknown Processor melts. 56167_ System corrupted: Matter fused (-10). 56195_ Identified Arm. Heavy Treads. 56196_ Acquired Cld. Nova Cannon. 56197_ Extracted 1 energy. 56198_ 5NJZ0GAW